{"text_format":"1","workbook":"xlsx","n_sheets":5,"sheets":["Erläuterung","Eingabe","Wärmepreis","Ergebnis","Interpretation"],"not_rendered":{"charts":2,"images":2,"macros":1,"external_links":0,"defined_names":285,"comments":3,"pivot_tables":0},"unopened":[],"bounds":{"document_bytes":16777216,"sheet_cells":100000,"rows_first":2000,"rows_last":500,"rows_between":2000,"halvings":0,"cell_chars":16384,"cell_head_chars":4096},"cells_cut":0,"cells_raw":0,"read":"whole","date_system":"1900"}

{"sheet":"Erläuterung","index":0,"n_rows":137,"n_cols":2,"rows_kept":137,"cut":false,"hidden":false,"merged":[]}
[null,"Erläuterung"]
[null,"Prinzipielles zu diesem Werkzeug:\nHaftungsausschluss\nDas Excel-Werkzeug wurde sehr sorgfältig erstellt, trotzdem können die Hersteller keinerlei Garantie oder Gewährleistung für die ermittelten Ergebnisse und daraus abgeleitete Schlüsse übernehmen. Durch die getroffenen Vereinfachungen ergeben sich aufgrund der Art der Berechnung bestimmte \"Fehler\", z.B. wird nicht berücksichtigt, ob eine Zahlung zu Jahresbeginn oder Jahresende erfolgt, da ein Jahr als eine Periode angesehen wird.\n!Achtung: Auch wenn Warnungs-Rückmeldungen bezüglich diverser Eingabegrenzen durch das Werkzeug erfolgen, ist nicht auszuschließen, dass durch falsche Eingabewerte eine falsche Darstellung des Endergebnisses erfolgt. Die richtige Abschätzung der Folgen bestimmter Annahmen obliegt dem Benutzer des Werkzeugs.\n\nBerechnungsgang: \nAusgehend von der tatsächlich verbrauchten Wärmemenge, und den Jahresnutzungsgraden für das Netz und die Kesselanlagen wird auf den notwendigen Brennstoffeinsatz, und die damit verbundenen jährlichen Kosten rückgerechnet. \n\nFormeln:\nIn dieser Arbeitsmappe sind alle Formeln und Berechnungen ersichtlich. Bitte beachten Sie, dass Änderungen daran zu Fehlern an anderen Stellen und damit zu falschen Aussagen des Werkzeugs führen können.\n\nSensitivitätsanalyse / Was-Wäre-Wenn Rechnung:\nDurch Variation der Eingabeparameter und Speicherung der einzelnen Ergebnisse der \nWirtschaftlichkeitsberechnung ist es möglich, Aussagen bezüglich des Einflusses einzelner \nParameter auf die positive wirtschaftliche Entwicklung des Projekts \"Heizwerk\" zu erhalten.\n\nFeedback:\nDas Team von qm heizwerke freut sich über Verbesserungsvorschläge und Anregungen zu \ndiesem Werkzeug, bitte übermitteln Sie diese an info@qm-heizwerke.at."]
[null,"Die Darstellung in der Tabelle Ergebnis erfolgt zum jeweiligen Ende der Jahresperiode, dabei wird keine Rücksicht auf die unterjährige Entwicklung genommen. Die Spalte Barwert (Bezug Jahr 0) wird dabei auf den Zeitpunkt Beginn des Projekts = VOR Periode 1 abgezinst. Der Kapitalwert wird ebenso gebildet."]
[100,"Alle € - Beträge müssen ohne Umsatzsteuer angegeben werden. Eingabefelder sind hellgelb unterlegt. Diese verlieren ihre Farbe, wenn ein Wert angegeben wird."]
[101,"Warnungen: Im Feld Warnungen erscheint ein kurzer Erläuterungstext, wenn bei der Eingabe unplausible Angaben gemacht werden (z.B. Nutzungsgrad = Null oder ähnlich)"]
[102,"Eingabe der verkauften Wärmemengen, des Wärmepreises und der Wärmeabnahme. Diese stellen mit dem Baukostenzuschuss/Anschlussgebühren wesentliche Ertragskomponenten eines Biomasse-Heizwerkes dar."]
[103,"Verkaufte Wärmemenge in MWh bei einem Wärmeabnahmegrad in der Höhe von 100%. Auf die Brennstoffmenge wird mit dem Jahresnutzungsgrad Netz und Jahresnutzungsgrad Kessel rückgerechnet."]
[104,"Interne Wärmeabnahmen / Verbräuche, die am drucklosen Verteiler entnommen werden, und nicht verkauft werden wie z.B. Heizung Heizwarte, Enteisung Rampe etc."]
[105,"Jahresnutzungsgrad des/der Biomassekessel(s). Relation zwischen erzeugter Wärmemenge und eingesetzter Brennstoffwärmemenge. Entspricht NICHT dem erreichbaren Momentanwirkungsgrad des Kessels! Zu hohe Annahmen führen zu deutlich verringerten Brennstoffverbrauch, und damit zur Annahme zu kleiner Brennstoffkosten."]
[106,"Jahresnutzungsgrad des Fernwärmenetzes (40 … 98%). Relation der Wärmemenge, die aus dem Netz verkauft wurde, zu jener Wärmemenge, die in das Netz eingespeist wurde. Entspricht NICHT dem Momentanwirkungsgrad des Rohrnetzes im Auslegungspunkt!"]
[107,"Wärmeabnahmegrad des Fernwärmenetzes in % - im Ausbaujahr 3 sollten 100% erreicht werden, da dieses als Basisjahr für die folgenden Jahre herangezogen wird. Durch diese Angabe kann ein Netzausbau berücksichtigt werden, der in mehreren Stufen über die ersten 3 Jahre erfolgt. Im Jahr 3 müssen 100% erreicht sein!"]
[108,"Steigerung des Wärmeabnahmegrades nach dem 3. Jahr. Durch konsequente Netzverdichtung (Anschließen von zusätzlichen Abnehmern) kann der Wärmeabnahmegrad, bezogen auf den ursprünglich für das dritte Jahr berücksichtigten Wert, auf mehr als 100 % steigen. Auftretende notwendige Investitionen sollten unter \"zus. Aufwand / Kosten\" im Ergebnisblatt in den Jahren hinterlegt werden, wo sie auftreten."]
[109,"Wärmeverkaufspreis netto, kann im Blatt \"Wärmepreis\" aus Grund-, Meßpreis und Arbeitspreis und mit Preisstaffelung berechnet werden."]
[110,"Durchschnittliche Anpassung des Wärmepreises in Prozent: Bei Bindung an den Verbraucherpreisindex ist mit Raten zwischen 2% und 3% zu rechnen. (Diese sollte nicht höher als die Wertanpassung für Strom, Brennstoff oder Personalkosten angenommen werden). "]
[111,"Gebühren, die von den Wärmekunden für die Errichtung der Anschlüsse (Verrohrung + Wärmeübergabestationen) eingehoben werden. Diese führen zu positiven aktuellen Einnahmen, erhöhen aber gleichzeitig die Investitionssumme."]
[112,"Sonstige Erlöse (z.B. Brennstoffverkauf ab Heizwerk etc.)."]
[113,"Preisanpassung sonstige Erlöse (z.B. Verbraucherpreisindex)."]
[114,"Basisjahr für Investitionen - wird als Jahr 0 für die Wirtschaftlichkeitsrechnung herangezogen"]
[120,"Rohstoffpreis und Betriebskosten, wesentliche Ausgabepositionen für ein Biomasse-Heizwerk."]
[121,"Rohstoffpreis für den Brennstoff Biomasse in €/MWh Energieinhalt."]
[122,"Anteil der verkauften Wärme, die mit Biomasse erzeugt wurde in Prozent. 100% steht für ausschließlich Biomasse, 90% wenn 10% des Jahreswärmebedarfs mit fossilen Energieträgern aufgebracht werden."]
[123,"Jährliche prozentuelle Preisentwicklung für den Brennstoff Biomasse. Es sollte jedenfalls ein Anstieg zwischen dem Verbraucherpreisindex und den angenommenen Preisanstiegen für fossile Energieträger in die Kalkulation miteinbezogen werden."]
[124,"Preis des eingesetzten fossilen Brennstoffs, Heizöl oder Erdgas. Sollte ein nicht-fossiler Brennstoff zur Spitzenlastabdeckung eingesetzt werden, muss er hier angesetzt werden."]
[125,"Jährliche prozentuelle Preisentwicklung des fossilen Brennstoffs in Prozent. (In den vergangenen 5 Jahren vor 2008 war ein durchschnittlicher Anstieg von 5% zu verzeichnen)."]
[126,"Spezifischer Stromverbrauch in kWh elektrisch je MWh thermisch verkauft. Dieser Wert sollte sämtliche elektrischen Verbraucher des Heizwerks (Kessel, Pumpen, Netzpumpen, Gebläse, E-Filter, …. ) beinhalten. "]
[127,"Strompreis in € je kWh des geplanten Stromversorgers"]
[128,"Jährliche prozentuelle Preisentwicklung des Strompreises."]
[130,"Personalaufwand für die Betreuung des Heizwerks und des Wärmenetzes in Euro je Jahr."]
[131,"Jährliche prozentuelle Preisentwicklung des Personalaufwands."]
[132,"Jährlicher Aufwand für Buchhaltung und (Steuer) Beratung."]
[133,"Jährliche prozentuelle Preisentwicklung für Buchhaltung und Beratung."]
[134,"Jährliche Kosten für Instandhaltung."]
[135,"Jährliche prozentuelle Preisentwicklung für Instandhaltung."]
[136,"Jährliche Kosten für Miete oder Pacht oder die Liegenschaft."]
[137,"Jährliche prozentuelle Preisentwicklung für Miete/Pacht/Liegenschaft."]
[138,"Sonstige jährliche Kosten (Versicherung, Homepage, Telefonie, öffentliche Gebühren, ...... etc.)"]
[139,"Jährliche prozentuelle Preisentwicklung für Sonstige Kosten."]
[140,"Maximale Steigerung des Wärmeabnahmegrades, z.B. wenn in der versorgten Ortschaft nicht mehr als 10% zusätzlicher Wärmeverkauf als im Jahr 3 bei voller Kapazität möglich ist, dann sollte hier bei einer angenommenen Erhöhung des Verkaufs unter \"Steigerung Wärmeabnahmegrad ab Jahr 4\" mit 10% limitiert werden, damit sich die Erhöhung in der Berechnung nicht unlimitiert fortsetzt."]
[150,"Investitionskosten der Anlage."]
[151,"Anlagekosten förderfähig."]
[152,"Investitionskosten in das Fernwärmenetz."]
[153,"Baukosten für das Heizhaus und Hackgutlager."]
[154,"Kosten für die Planung des Heizwerkes und des Fernwärmenetzes und Durchführung von qm heizwerke."]
[155,"Nicht förderfähige Kosten (Fahrzeuge etc)."]
[156,"Investitionskosten Gesamt, werden aus förderfähigen und nicht förderfähigen Kosten errechnet. Die Summe, die der Bauherr anfänglich aufwenden muss, um das Heizwerk und Wärmenetz zu errichten. Investitionsförderungen werden meist im Jahr 1-3 nach der Investition der Mittel ausbezahlt."]
[160,"Vorhandene Eigenmittel für das Projekt, Fremdfinanzierungsanteil, Förderung und Förderquote. Es wird empfohlen, möglichst einen Mindest - Eigenmittelanteil von 10-30% zu erreichen. Je höher der Eigenmittelanteil, desto niedriger die laufenden Belastungen der Liquidität durch Kreditzinsen und Kredittilgung."]
[161,"Eigenmittelanteil, der von den Gesellschaftern in das Unternehmen eingebracht wird."]
[162,"Laufzeit des Kredits, in dieser Berechnung werden konstante Raten über die gesamte Laufzeit angenommen. Die Laufzeit des Kredits sollte gegenüber der Bank so lange als möglich vereinbart (ideal 20, 25 Jahre), und die Möglichkeit einer vorzeitigen kostenfreien Rückzahlung im Kreditvertrag festgehalten werden. So bleibt die verpflichtete Rate so tief wie möglich, bei höheren Einnahmen kann der Betreiber aber vorauszahlen, und damit den Kredit rascher rückführen."]
[163,"Durchschnittlicher Bruttokreditzinssatz für die gesamte Laufzeit (z.B. Referenzzinssatz (Euribor) + Aufschlag + Nebenkosten)."]
[164,"Angenommene Förderquote in Prozent der förderfähigen Kosten. Von einem bestimmten Anteil der Investitionssumme (Förderfähige Kosten) wird ein Summe aus den förderfähigen Kosten mal diesem Prozentsatz als Förderung aus öffentlichen Mitteln ausbezahlt."]
[165,"Jahr der Förderauszahlung. Es wird empfohlen frühestens Jahr 2, besser Jahr 3 in die Kalkulation einzubeziehen, da durch eine verzögerte Auszahlung zusätzliche Zinsen für das zwischenzeitlich benötigte Fremdkapital aufgewendet werden müssen."]
[166,"Schalter für Laufende Förderung, die pro Jahr ausbezahlt wird. Eingabe von 'x' um diese Option auszuwählen, Leertaste löscht die Auswahl. Die Förderung wird in der Spalte 'Zusätzliche Erträge / zusätzliche Förderung' eingetragen.\nDurch die Methode der Berechnung: Basisbetrag + Erhöhungsbetrag + prozentuelle Steigerung sollte es möglich sein, individuelle Fördermodelle mit diesen Angaben abzubilden."]
[167,"Laufende Förderung: Betrag im 1. Jahr."]
[168,"Laufende Förderung: Erhöhung des Betrages pro Jahr."]
[169,"Laufende Förderung: Prozentuelle Erhöhung des Betrages pro Jahr."]
[170,"Kapitalwertberechnung - diese Wirtschaftlichkeitsberechnung beruht auf einem dynamischen Verfahren der Investitionsrechnung. Der Kapitalwert einer Investition ist die Summe der Barwerte aller durch diese Investition verursachten Zahlungen (Ein- und Auszahlungen).  Voraussetzung ist jedoch, dass zwischenzeitliche kumulierte Überschüsse sofort zum Kalkulationszinssatz angelegt werden. (Auch Net Present Value Methode)"]
[171,"Kalkulatorischer Zinssatz der bei der Kapitalwertberechnung zur Anwendung kommt. Bei Fremdfinanzierung zumindest in der Nähe der höchsten durchschnittlichen Fremdkapitalzinsen."]
[180,"Errechnete Werte: Zahlenwerte, die sich aus den obigen Eingaben errechnen lassen und zur Kontrolle der Eingabe und Darstellung der Berechnung der Energiemengen dienen."]
[181,"Prozentueller Anteil der verkauften Wärmemenge, der mit fossilen Energieträgern erzeugt wird."]
[182,"Erzeugte Wärmemenge, wird über den Netznutzungsgrad und die Eigenentnahmen des Heizwerks aus der verkauften Wärmemenge berechnet."]
[183,"Für die erzeugte Wärmemenge eingesetzte Brennstoffwärmemenge, wird über den Jahresnutzungsgrad Kessel aus der erzeugten Wärmemenge berechnet."]
[184,"Die eingesetzte Brennstoffwärme Biomasse entspricht dem Anteil der erzeugten Wärmemenge, die mit Biomasse aufgebracht wird. Der übrige Anteil wird mit fossilen bzw. sonstigen Energieträgern aufgebracht."]
[185,"Die eingesetzte Brennstoffwärme fossil entspricht dem Anteil der erzeugten Wärmemenge, die mit fossilem Brennstoff aufgebracht wird. Der übrige Anteil wird mit Biomasse aufgebracht."]
[186,"Stromverbrauch des Heizwerks im Jahr 1 - Errechnet aus dem spez. Stromverbrauch je MWh Wärme verkauft und der Menge der MWh Wärme verkauft."]
[190,"Gesamte Investitionskosten für das Heizwerk und Wärmenetz und zusätzlich notwendige Investitionen."]
[191,"Förderfähige Kosten mit der Förderquote aus förderfähigen Kosten errechnet."]
[192,"Förderbetrag aus den förderfähigen Kosten errechnet."]
[193,"Kreditbetrag, der maximal fremdfinanziert werden muss (Vor Auszahlung Investitionsförderung im Jahr 1-3)."]
[194,"Kreditbetrag, der langfristig fremdfinanziert werden muss (Nach Auszahlung des Betrages der Investitionsförderung)."]
[195,"Kreditzinsen im ersten Jahr."]
[196,"Annuität: Jährliche Zahlung, damit der Kredit innerhalb der Laufzeit inklusive der notwendigen Zinsen zurückbezahlt werden kann."]
[197,"Annuität Kredit bis zur Auszahlung der Investitionsförderung. Da der Betrag der Investitionsförderung durch Fremdkapital aufgebracht werden muss, ist die Annuität deutlich höher. Der Betrag der Investitionskosten wird mit den Fremdkapitalzinsen angesetzt."]
[null,"Zusatzblatt Wärmepreis: \nDieses Blatt dient der Berechnung des durchschnittlichen Wärmeverkaufspreises auf  verschiedene mögliche Arten. Es können Varianten aus Grundpreis-, Meßpreis oder Arbeitspreis für drei verschiedene Abnehmerarten berechnet werden, und es ist eine Volumensrabattierung möglich. Der Wärmepreis kann auch direkt angegeben werden. Das Ergebnis wird auf der Seite \"Eingabe\" in grau neben dem Eingabefeld \"Wärmeverkaufspreis\" dargestellt."]
[401,"x' zum Auswählen, Leertaste zum Entfernen; Variante Berechnung aus Grundpreis, Meßpreis und Arbeitspreis. Je nach der Gewichtung der Wärmeabnehmer kann ein gewichteter, gemittelter Wärmepreis aus kleinen, mittleren und großen Abnehmern mit jeweils eigenen Grund-, Meß- und Arbeitspreisen errechnet werden."]
[402,"x' zum Auswählen, Leertaste zum Entfernen; Variante mit Preisstaffelung: Bei höheren verkauften Wärmemengen wird der Verkaufspreis je MWh niedriger."]
[403,"Ermittelter Wärmepreis, wenn in 401/402 nichts angekreuzt wird, dann direkt aus 414 übernommen. Wenn die Berechnung aus Grundpreis, Meßpreis und Arbeitspreis erfolgt, wird ein gewichteter Preis mit den richtigen Faktoren je MWh errechnet. Wenn zusätzlich eine Preisstaffelung ausgewählt wird, dann wird der Preis je nach Volumen gewichtet wieder um die Preisrabatte reduziert."]
[404,"Berechnung aus Grundpreis- Meßpreis und Arbeitspreis. Mit diesem Berechnungsblatt können verschiedene Berechnungen des Wärmepreises vorgenommen werden. Der errechnete Preis wird im Arbeitsblatt \"Eingabe\" als Vergleich zum Eingabewert für die Wirtschaftlichkeitsrechnung dargestellt."]
[405,"Abnehmerart 1 - entspricht Privat oder Kleinkunden mit sehr geringer Wärmeabnahme und Leistungsanforderung, wie z.B. Einfamilienhäuser, einzelne Wohnungen, kleine Bürogebäude etc."]
[406,"Grundpreis in € je kW installierte Wärmeübergabeleistung; um eine Berechnung ohne Grundpreis durchzuführen ist dieses Feld gleich Null zu setzen. Üblicherweise werden die Grundpreise je kW installierte Leistung mit zunehmender Leistung des Anschlusses etwas geringer."]
[407,"Messpreis - in € je Jahr für die installierten Messeinrichtungen. "]
[408,"Arbeitspreis in € je kWh für die verkaufte Wärmemenge."]
[409,"Durchschnittliche Anschlussleistung der einzelnen Abnehmerart (1-3). Diese muss über alle Abnehmer, die der Abnehmerart angehören, richtig gemittelt ermittelt werden, damit die sich daraus ergebende Wärmepreisberechnung ein richtiges Ergebnis liefert."]
[410,"Durchschnittliche Wärmeabnahme der einzelnen Abnehmerart (1-3). Diese muss über alle Abnehmer, die der Abnehmerart angehören richtig gemittelt ermittelt werden, damit die sich daraus ergebende Wärmepreisberechnung ein richtiges Ergebnis liefert."]
[411,"Ermittelter Wärmepreis je Abnehmerart 1-3. Bei größeren Wärmeabnahmemengen reduziert sich der Anteil der Fixkosten für Grundpreis und Messpreis, wodurch ein geringerer Wärmepreis je kWh in Rechnung zu stellen ist."]
[412,"Abnehmerart 2 - entspricht gewerblichen Kunden mit durchschnittlicher Wärmeabnahme und mittlerer Leistungsanforderung, wie z.B. Gewerbebetriebe, größere Bürogebäude etc."]
[413,"Abnehmerart 3 - entspricht industriellen Kunden mit großer Wärmeabnahme und hoher Leistungsanforderung, wie z.B. Industriebetriebe, Prozesswärmekunden, große Wohnbauten, …"]
[414,"Eingabewert durchschnittlicher Wärmepreis über alle Abnehmer und die gesamte verkaufte Wärmemenge. Die Berechnung kann dabei vom hier vorgestellten Schema abweichen, z.B. können verschiedene Einzelpreise durch Gewichtung mit der abgenommenen Wärmemenge herangezogen werden."]
[415,"Preisstaffelung bei großen Abnahmemengen: Durch Variation der Grenzen \"von kWh/a\" und \"bis kWh/a\" können Grenzen definiert werden, ab denen Rabatte auf den Wärmepreis gewährt werden."]
[416,"Rabattstufe 1  - Einzugeben ist der Wert \"bis kWh/a\" und der Preisfaktor in Prozent. Hier sollte der Preisrabatt immer 100% sein. Alle Angaben zwischen 0 und der Obergrenze für die Rabattstuffe werden mit dem Prozentfaktor multipliziert, die nächsthöhere Rabattstufe beginnt 1kWh über der nächstniedrigeren Stufe."]
[417,"Rabattstufe 2  - Einzugeben ist der Wert \"bis kWh/a\" und der Preisfaktor in Prozent. Die Untergrenze wird aus der Rabattstufe 1 übernommen. Alle Angaben zwischen der Untergrenze und der Obergrenze für die Rabattstuffe werden mit dem Prozentfaktor multipliziert, die nächsthöhere Rabattstufe beginnt 1kWh über der nächstniedrigeren Stufe."]
[418,"Rabattstufe 3  - Einzugeben ist der Wert \"bis kWh/a\" und der Preisfaktor in Prozent. Die Untergrenze wird aus der Rabattstufe 2 übernommen. Alle Angaben zwischen der Untergrenze und der Obergrenze für die Rabattstuffe werden mit dem Prozentfaktor multipliziert, die nächsthöhere Rabattstufe beginnt 1kWh über der nächstniedrigeren Stufe."]
[419,"Rabattstufe 4  - Einzugeben ist der Wert \"bis kWh/a\" und der Preisfaktor in Prozent. Die Untergrenze wird aus der Rabattstufe 3 übernommen. Alle Angaben zwischen der Untergrenze und der Obergrenze für die Rabattstuffe werden mit dem Prozentfaktor multipliziert, die nächsthöhere Rabattstufe beginnt 1kWh über der nächstniedrigeren Stufe."]
[420,"Rabattstufe 5  - Einzugeben ist der Wert \"bis kWh/a\" und der Preisfaktor in Prozent. Obergrenze wird mit unendlich angenommen. Alle Angaben zwischen der Untergrenze und der Obergrenze für die Rabattstuffe werden mit dem Prozentfaktor multipliziert, die nächsthöhere Rabattstufe beginnt 1kWh über der nächstniedrigeren Stufe."]
[500,"Das Blatt \"Interpretation\" erlaubt die textliche Erläuterung der Ergebnisse einer bestimmten Wirtschaftlichkeitsberechnung, sodass Zusatzangaben zu den Eingabewerten und berechneten Ergebnissen, sowie den grafischen Darstellungen möglich werden."]
[900,"Ergebnisblatt: Darstellung der vereinfachten finanziellen Entwicklung des Projekts innerhalb von 25 Jahren. Die Abschnitte Betriebskosten bzw. Erlöse beziehen sich auf das Betriebsjahr 1 und 100% Auslastung (Was zumeist noch nicht erreicht wird!). Diese sollen helfen, die zu erwartenden Kosten- und Erlöse besser einschätzen zu können. \nDie Verfahren der dynamischen Investitionsrechnung berücksichtigen den Anfall (Zahlungszeitpunkt) der einzelnen Einnahmen und Ausgaben. Eine Ausgabe ist um so schlechter, je früher sie stattfindet. Einnahmen sind um so schlechter je später sie stattfinden."]
[901,"Die Kapitalwerte werden für die Perioden 1-10, 1-15, 1-20, 1-25 errechnet. Der Kapitalwert sollte jedenfalls positiv sein, und sich zu längeren Laufzeiten hin zumindest nicht verschlechtern."]
[905,"Erlöse: Sämtliche Erlöse des Heizwerks bezogen auf das Betriebsjahr 1 und 100% Auslastung. Der angegebene Index ist ein gewichteter Mischindex aus den Erhöhungen der Erlöse."]
[910,"Die Kapitalwerte werden für die Perioden 1-10, 1-15, 1-20, 1-25 errechnet. Der Kapitalwert sollte jedenfalls positiv sein, und sich zu längeren Laufzeiten hin zumindest nicht verschlechtern. Projekte mit größeren Investitionssummen sind nicht direkt mit Projekten mit kleineren Investitionssummen zu vergleichen."]
[920,"Bezogen auf die Kapitalwertberechnung müssen \"Einnahmen\" den \"Ausgaben\" der einzelnen Perioden gegenübergestellt werden."]
[930,"Jahr - die Periodisierung dieses Berechnungswerkzeugs ist 1 Periode = 1 Betriebsjahr."]
[931,"Auslastung - Die Auslastung des Heizwerks bzw. Wärmenetzes bezogen auf die verkaufte Wärmemenge."]
[932,"Auszahlungen für Brennstoff Biomasse."]
[933,"Auszahlungen für Brennstoff fossil."]
[934,"Auszahlungen für Personalkosten für Buchhaltung und Beratung."]
[935,"Auszahlungen für Stromkosten."]
[936,"Auszahlungen für Instandhaltung."]
[null,"Sonstige Auszahlungen, hier können z.B. erwartete Re-Investitionskosten, zusätzliche, später auftretende Erweiterungsinvestitionen und die Investitionen durch Netzverdichtung ab dem Jahr 4 mit einem Kostenbetrag berücksichtigt werden."]
[937,"Auszahlungen für sonstige Kosten (z.B. Versicherung, Homepage, Telefonie, öffentliche Kosten, ...) und Grundstücksmiete bzw. -pacht."]
[938,"Auszahlungen für Investitionen - Kreditzinsen und Kontotilgung. Die Investition aus Eigenkapital wird auch im ersten Jahr in dieser Spalte verbucht. Wenn es eine Investitionsförderung gibt, dann muss der Zinsaufwand für den Förderungsbetrag so lange zusätzlich geleistet werden, bis die Förderung ausbezahlt wird (Eingabe: Jahr der Förderauszahlung). "]
[939,"Summe der Auszahlungen jährliche \"Betriebskosten\". Summe der Spalten 2 - 8."]
[940,"Einzahlungen - Erlöse aus Fernwärmeverkauf."]
[941,"Einzahlungen - Baukostenzuschuss / Förderung."]
[942,"Einzahlungen - Zusätzliche Erträge / laufende Förderung - Spalte für freie Eingabe. Bei freier Eingabe der Beträge für laufende Förderung werden die Formeln unwiderbringlich überschrieben, sie sollten die Excel-Arbeitsmappe zuerst unter einem anderen Dateinamen speichern."]
[943,"Einzahlungen - Sonstige Erlöse wie etwa Brennstoffverkauf etc."]
[944,"Einzahlungen - Gesamterlöse Summe der Spalten 10 - 13."]
[945,"Zahlungsüberschuss / Fehlbetrag - wirtschaftliches Ergebnis des Heizwerksbetriebs in der aktuellen Periode."]
[946,"Barwert des Zahlungsüberschusses / Fehlbetrags. Auf den Zeitpunkt Jahr 0 abgezinster Betrag des zukünftigen Zahlungsüberschusses / Fehlbetrags."]
[947,"Kumulierter Zahlungsüberschuss - Summe der Zahlungsüberschüsse / Fehlbeträge der Vorjahre. Wird dieser Betrag negativ, so muss in das Unternehmen frisches Kapital (durch Einlagen, Kontokorrent etc.) eingebracht werden."]
[948,"Kreditstand (informativ) - Reine netto-Berechnung des Kreditstands, ohne Kosten für Bankgebühren, Errichtung etc. Dient der Angabe einer Größenordnung. Der Kreditstand berücksichtigt den Zeitpunkt der Förderungsauszahlung, bis dahin müssen die Zinsen für den Förderungsbetrag zusätzlich aufgewendet werden. "]
[949,"Förderung (informativ) - Förderbetrag, und wann er berücksichtigt wird (Jahr 1-5)"]
[980,"Darstellung der wirtschaftlichen Entwicklung im Verlauf der Perioden 1-25. "]
[981,"Darstellung der Kapitalwerte für die Perioden 1-5, 1-10, 1-15, 1-25."]
[]
[null,"Einheiten"]
[null,"MWh = Megawattstunde thermisch bzw. Wärme."]
[null,"kWh = Kilowattstunde thermisch bzw. Wärme."]
[null,"a = Jahr (anno)"]
[null,"€ = Euro "]
[null,"% = Prozent"]
[null,"MWhel = Megawattstunde elektrisch bzw. Strom."]
[null,"kWhel = Kilowattstunde elektrisch bzw. Strom."]
[]
[null,"Abkürzungen"]
[null,"VJ = Vorjahr"]
[null,"BKS = Baukostenzuschuss"]
[null,"lfd = laufende"]
[null,"ÜS = Überschuss"]

{"sheet":"Eingabe","index":1,"n_rows":105,"n_cols":36,"rows_kept":105,"cut":false,"hidden":false,"merged":[[90,13,90,15],[104,13,104,15],[103,13,103,15],[74,13,74,15],[102,13,102,15],[76,13,76,15],[94,13,94,15],[97,13,97,15],[99,13,99,15],[101,13,101,15],[98,13,98,15],[100,13,100,15],[93,13,93,15],[91,13,91,15],[96,13,96,15],[92,13,92,15],[80,13,80,15],[81,13,81,15],[89,13,89,15],[56,13,56,15],[65,13,65,15],[62,13,62,15],[63,13,63,15],[84,13,84,15],[78,13,78,15],[79,13,79,15],[70,13,70,15],[61,13,61,15],[75,13,75,15],[71,13,71,15],[69,13,69,15],[64,13,64,15],[7,1,7,3],[18,13,18,15],[22,13,22,15],[7,4,7,22],[13,13,13,15],[16,13,16,15],[14,13,14,15],[17,13,17,15],[19,13,19,15],[20,13,20,15],[3,5,3,22],[11,13,11,15],[12,13,12,15],[22,18,22,19],[25,13,25,15],[23,13,23,15],[27,13,27,15],[28,13,28,15],[30,13,30,15],[50,13,50,15],[49,13,49,15],[41,13,41,15],[38,13,38,15],[34,13,34,15],[35,13,35,15],[36,13,36,15],[53,13,53,15],[40,13,40,15],[37,13,37,15],[42,13,42,15],[60,13,60,15],[52,13,52,15],[55,13,55,15],[45,13,45,15],[47,13,47,15],[46,13,46,15],[48,13,48,15]]}
[null,"qm heizwerke - Wirtschaftlichkeitsmodell - Eingabedaten"]
[]
[]
[null,"Projekttitel:",null,null,null,"Musterprojekt Mustermann"]
[]
[100,"(exkl. USt)",null,null,null,"Eingabefeld",null,null,null,null,null,null,null,"Blattschutz - Kennwort:",null,null,null,null,null,"qmheizwerke"]
[]
[101,"Warnungen:",null,null,{"$f":"IF(AD8>10,\"Mehr als 10 Warnungen oder Fehler!\",IF(AD8>0,AE8,\"\"))","v":""},null,null,null,null,null,null,null,null,null,null,null,null,null,null,null,null,null,null,null,null,null,null,null,null,{"$f":"SUM(AB11:AD131)","v":0},{"$f":"AE11&AE27&AE34&AE45&AE60&AE69&AE74","v":""}]
[]
[102,"Wärmemengen, Wärmepreis, Anschlußgebühr",null,null,null,null,null,null,null,null,null,null,null,null,null,null,null,null,null,null,null,null,null,null,null,"Min","Max","Unters.","Übers.","S.Fehler","Warnung","SumSp","MinText","MaxText","SonstText"]
[null,null,null,null,null,null,null,null,null,null,null,null,null,null,null,null,null,null,null,null,null,null,null,null,null,null,null,null,null,null,{"$f":"AE12&AE13&AE14&AE17&AE18&AE19&AE23&AE26&AE15&AE20&AE24&AE21","v":""},"x"]
[103,null,null,null,null,null,null,null,null,null,null,null,"Verkaufte Wärmemenge",7750,null,null,"MWh/a",null,null,null,null,null,null,null,null,10,9999999999,{"$f":"IF($N12<Z12,1,0)","v":0},{"$f":"IF($N12>AA12,1,0)","v":0},0,{"$f":"IF(AB12=1,AG12,IF(AC12=1,AH12,IF(AD12=1,AI12,\"\")))","v":""},null,"Die verkaufte Wärmemenge ist zu klein!","Die verkaufte Wärmemenge ist zu gross."]
[104,null,null,null,null,null,null,null,null,null,null,null,"Interne Abnahme/Interner Verbrauch",0,null,null,"MWh/a",null,null,null,null,null,null,null,null,0,9999999999,{"$f":"IF($N13<Z13,1,0)","v":0},{"$f":"IF($N13>AA13,1,0)","v":0},{"$f":"IF(Eing_interne_Abnahme>Eing_verkaufteWM,1,0)","v":0},{"$f":"IF(AB13=1,AG13,IF(AC13=1,AH13,IF(AD13=1,AI13,\"\")))","v":""},null,"Die interne Abnahme ist negativ.","Die interne Abnahme ist zu gross.","Die interne Abnahme ist größer als die Verkaufte Wärmemenge!"]
[105,null,null,null,null,null,null,null,null,null,null,null,"Jahresnutzungsgrad Kessel",85,null,null,"%",null,null,null,null," ",null,null,null,40,98,{"$f":"IF($N14<Z14,1,0)","v":0},{"$f":"IF($N14>AA14,1,0)","v":0},{"$f":"IF(Eing_interne_Abnahme>Eing_verkaufteWM,1,0)","v":0},{"$f":"IF(AB14>0,AG14,\"\")&IF(AC14>0,AH14,\"\")&IF(AD14>0,AI14,\"\")","v":""},null,"Der Jahresnutzungsgrad des Kessels ist unter 40 %.","Der Jahresnutzungsgrad des Kessels ist über 98 %."]
[106,null,null,null,null,null,null,null,null,null,null,null,"Jahresnutzungsgrad Wärmenetz",70,null,null,"%",null,null,null,null,null,null,null,null,40,99,{"$f":"IF($N15<Z15,1,0)","v":0},{"$f":"IF($N15>AA15,1,0)","v":0},{"$f":"IF(N15=\"\",1,0)","v":0},{"$f":"IF(AB15>0,AG15,\"\")&IF(AC15>0,AH15,\"\")&IF(AD15>0,AI15,\"\")","v":""},null,"Der Jahresnutzungsgrad Wärmenetz ist zu niedrig! ","Der Jahresnutzungsgrad Wärmenetz ist zu hoch! ","Kein Jahresnutzungsgrad Netz angegeben! "]
[]
[107,null,null,null,null,null,null,null,null,null,null,null,"Wärmeabnahmegrad Jahr 1",60,null,null,"%",null,null,null,null,null,null,null,null,0,100,{"$f":"IF($N17<Z17,1,0)","v":0},{"$f":"IF($N17>AA17,1,0)","v":0},{"$f":"IF(N17=\"\",1,0)","v":0},{"$f":"IF(AB17>0,AG17,\"\")&IF(AC17>0,AH17,\"\")&IF(AD17>0,AI17,\"\")","v":""},null,"Der Wärmeabnahmegrad im 1. Jahr ist zu gering! "]
[null,null,null,null,null,null,null,null,null,null,null,null,"Wärmeabnahmegrad Jahr 2",80,null,null,"%",null,null,null,null,null,null,null,null,1,100,{"$f":"IF($N18<Z18,1,0)","v":0},{"$f":"IF($N18>AA18,1,0)","v":0},{"$f":"IF(Eing_Wärmeabnahme_Jahr2<Eing_Wärmeabnahme_Jahr1,1,0)","v":0},{"$f":"IF(AB18>0,AG18,\"\")&IF(AC18>0,AH18,\"\")&IF(AD18>0,AI18,\"\")","v":""},null,"Der Wärmeabnahmegrad im 2. Jahr ist zu gering! ","Der Wärmeabnahmegrad im 2. Jahr ist zu hoch. ","Der Wärmeabnahmegrad im 2. Jahr ist kleiner als im 1. Jahr. "]
[null,null,null,null,null,null,null,null,null,null,null,null,"Wärmeabnahmegrad Jahr 3",100,null,null,"%",null,null,null,null,null,null,null,null,2,100,{"$f":"IF($N19<Z19,1,0)","v":0},{"$f":"IF($N19>AA19,1,0)","v":0},{"$f":"IF(Eing_Wärmeabnahme_Jahr3<Eing_Wärmeabnahme_Jahr2,1,0)","v":0},{"$f":"IF(AB19>0,AG19,\"\")&IF(AC19>0,AH19,\"\")&IF(AD19>0,AI19,\"\")","v":""},null,"Der Wärmeabnahmegrad im 3. Jahr ist zu gering! ","Der Wärmeabnahmegrad im 3. Jahr ist zu hoch. ","Der Wärmeabnahmegrad im 3. Jahr ist kleiner als im 2. Jahr. "]
[108,null,null,null,null,null,null,null,null,null,null,null,"Steigerung Wärmeabnahmegrad ab Jahr 4",0,null,null,"%",null,null,null,null,null,null,null,null,0,5,{"$f":"IF($N20<Z20,1,0)","v":0},{"$f":"IF($N20>AA20,1,0)","v":0},{"$f":"IF(Eing_Wärmeabnahme_Steig=\"\",1,0)","v":0},{"$f":"IF(AB20>0,AG20,\"\")&IF(AC20>0,AH20,\"\")&IF(AD20>0,AI20,\"\")","v":""},null,"Die Steigerung des Wärmeabnahmegrades ab dem 4. ist kleiner als Null.","Die Steigerung des Wärmeabnahmegrades ab dem 4. ist zu hoch! ","Die Steigerung des Wärmeabnahmegrades nach dem 4. Jahr ist undefiniert. "]
[140,null,null,null,null,null,null,null,null,null,null,null,"Maximale Steigerung des Wärmeabnahmegrades",16,null,null,"%",null,null,null,null,null,null,null,null,0,100,{"$f":"IF($N21<Z21,1,0)","v":0},{"$f":"IF($N21>AA21,1,0)","v":0},{"$f":"IF(Eing_Max_Steig_Wärmeabnahmegrad=\"\",1,0)","v":0},{"$f":"IF(AB21>0,AG21,\"\")&IF(AC21>0,AH21,\"\")&IF(AD21>0,AI21,\"\")","v":""},null,"Die maxilmake Steigerung des Wärmeabnahmegrades ab dem 4. ist kleiner als Null.","Die maximale Steigerung des Wärmeabnahmegrades ab dem 4. ist zu hoch! ","Die maximale Steigerung des Wärmeabnahmegrades nach dem 4. Jahr ist undefiniert. "]
[]
[109,null,null,null,null,null,null,null,null,null,null,null,"Wärmeverkaufspreis",65,null,null,"€/MWh",null,{"$f":"Erg_Wärmepreis","v":61.863636363636367},null,"€/MWh",null,null,null,null,0,1000,{"$f":"IF($N23<Z23,1,0)","v":0},{"$f":"IF($N23>AA23,1,0)","v":0},{"$f":"IF(Eing_Wärmeverkaufspreis<0,1,0)","v":0},{"$f":"IF(AB23>0,AG23,\"\")&IF(AC23>0,AH23,\"\")&IF(AD23>0,AI23,\"\")","v":""},null,"Der Wärmeverkaufspreis ist sehr niedrig. ","Der Wärmeverkaufspreis ist zu hoch. ","Der Wärmeverkaufspreis ist negativ! ","Der Wärmeverkaufspreis ist negativ! "]
[110,null,null,null,null,null,null,null,null,null,null,null,"Durchschnittliche Anpassung Wärmepreis",2.5,null,0.5,"%",null,null,null,null,null,null,null,null,0,10,{"$f":"IF($N24<Z24,1,0)","v":0},{"$f":"IF($N24>AA24,1,0)","v":0},0,{"$f":"IF(AB24>0,AG24,\"\")&IF(AC24>0,AH24,\"\")&IF(AD24>0,AI24,\"\")","v":""},null,"Die durchschnittliche Anpassung des Wärmepreises wurde kleiner Null angenommen. ","Die durchschnittliche Anpassung des Wärmepreises ist zu hoch. "]
[]
[111,null,null,null,null,null,null,null,null,null,null,null,"Anschlussgebühren(Baukostenzuschuss) Jahr 1-3",350000,null,null,"€",null,null,null,null,null,null,null,null,0,{"$f":"Gesamtinvestition","v":2355000},{"$f":"IF($N26<Z26,1,0)","v":0},{"$f":"IF($N26>AA26,1,0)","v":0},0,{"$f":"IF(AB26>0,AG26,\"\")&IF(AC26>0,AH26,\"\")&IF(AD26>0,AI26,\"\")","v":""},null,"Der Baukostenzuschuss ist negativ","Die Anschlussgebühren bzw. der Baukostenzuschuss überschreiten die gesamte Investitionssumme. "]
[null,null,null,null,null,null,null,null,null,null,null,null,null,null,null,null,null,null,null,null,null,null,null,null,null,null,null,null,null,null,{"$f":"AE28&AE29&AE31","v":""},"x"]
[112,null,null,null,null,null,null,null,null,null,null,null,"Sonstige jährliche Erlöse",0,null,null,"€/a",null,null,null,null,null,null,null,null,0,9999999999,{"$f":"IF($N28<Z28,1,0)","v":0},{"$f":"IF($N28>AA28,1,0)","v":0},0,{"$f":"IF(AB28>0,AG28,\"\")&IF(AC28>0,AH28,\"\")&IF(AD28>0,AI28,\"\")","v":""},null,"Die sonstigen jährlichen Erlöse wurden negativ angenommen. ","Die sonstigen jährlichen Erlöse sind zu hoch! "]
[113,null,null,null,null,null,null,null,null,null,null,null,"Durchschnittliche Anpassung Sonstige Erlöse",9.9,null,null,"%",null,null,null,null,null,null,null,null,0,10,{"$f":"IF($N29<Z29,1,0)","v":0},{"$f":"IF($N29>AA29,1,0)","v":0},0,{"$f":"IF(AB29>0,AG29,\"\")&IF(AC29>0,AH29,\"\")&IF(AD29>0,AI29,\"\")","v":""},null,"Die durchschnittliche Anpassung sonstige Erlöse ist kleiner Null. ","Die Anpassung Sonstige Erlöse ist zu hoch. "]
[]
[114,null,null,null,null,null,null,null,null,null,null,null,"Jahr des Projektbeginns",2009,null,null,null,null,null,null,null,null,null,null,null,2000,2100,{"$f":"IF($N31<Z31,1,0)","v":0},{"$f":"IF($N31>AA31,1,0)","v":0},0,{"$f":"IF(AB31>0,AG31,\"\")&IF(AC31>0,AH31,\"\")&IF(AD31>0,AI31,\"\")","v":""},null,"Das Jahr des Projektbeginns liegt vor 2000. ","Das Jahr des Projektbeginns liegt nach 2100. "]
[]
[120,"Rohstoffpreis, Betriebskosten"]
[null,null,null,null,null,null,null,null,null,null,null,null,null,null,null,null,null,null,null,null,null,null,null,null,null,null,null,null,null,null,{"$f":"AE35&AE36&AE37&AE38&AE39&AE41&AE42&AE43","v":""},"x"]
[121,null,null,null,null,null,null,null,null,null,null,null,"Rohstoffpreis (Biomasse)",26,null,null,"€/MWh",null,null,null,null,null,null,null,null,0,100,{"$f":"IF($N35<Z35,1,0)","v":0},{"$f":"IF($N35>AA35,1,0)","v":0},{"$f":"IF(Eing_Rohstoffpreis_Biomasse<0,1,0)","v":0},{"$f":"IF(AB35>0,AG35,\"\")&IF(AC35>0,AH35,\"\")&IF(AD35>0,AI35,\"\")","v":""},null,"Der Rohstoffpreis (Biomasse) ist negativ angenommen. ","Der Rohstoffpreis (Biomasse) ist zu hoch. "]
[122,null,null,null,null,null,null,null,null,null,null,null,"Anteil der Wärme mit Biomasse erzeugt",95,null,95,"%",null,null,null,null,null,null,null,null,70,100,{"$f":"IF($N36<Z36,1,0)","v":0},{"$f":"IF($N36>AA36,1,0)","v":0},0,"",null,"Der mit Biomasse erzeugte Anteil an der Jahreswärmemenge ist gering.","Der mit Biomasse erzeugte Anteil an der Jahreswärmemenge ist zu hoch."]
[123,null,null,null,null,null,null,null,null,null,null,null,"Preisentwicklung Biomasse",2,null,null,"%/a",null,null,null,null,null,null,null,null,0,5,{"$f":"IF($N37<Z37,1,0)","v":0},{"$f":"IF($N37>AA37,1,0)","v":0},0,"",null,"Die angenommene Preisentwicklung für Biomasse ist kleiner Null.","Die angenommene Preisentwicklung für Biomasse ist sehr hoch."]
[124,null,null,null,null,null,null,null,null,null,null,null,"Preis fossiler Brennstoff ",56,null,null,"€/MWh erzeugte Energie",null,null,null,null,null,null,null,null,30,300,{"$f":"IF($N38<Z38,1,0)","v":0},{"$f":"IF($N38>AA38,1,0)","v":0},{"$f":"IF(Eing_Rohstoffpreis_fossil<Eing_Rohstoffpreis_Biomasse,1,0)","v":0},"",null,"Der Preis des fossilen Brennstoffs ist zu niedrig. ","Der angenommene Preis für den fossilen Brennstoff ist hoch. ","Der Preis für den fossilen Brennstoff liegt niedriger als der Biomassepreis. "]
[125,null,null,null,null,null,null,null,null,null,null,null,"Preisentwicklung fossiler Brennstoff",5,null,null,"%/a",null,null,null,null,null,null,null,null,0,10,{"$f":"IF($N39<Z39,1,0)","v":0},{"$f":"IF($N39>AA39,1,0)","v":0},{"$f":"IF(Eing_Preisentwicklung_fossil<Eing_Preisentwicklung_Biomasse,1,0)","v":0},"",null,"Die Preisentwicklung für den fossilen Brennstoff wurde negativ angenommen. ","Die angenommene Preisentwicklung für den fossilen Brennstoff ist hoch. ","Die Preisentwicklung des fossilen Brennstoffs ist niedriger als für Biomasse."]
[]
[126,null,null,null,null,null,null,null,null,null,null,null,"Spezifischer Stromverbrauch",10,null,null,"kWhel/MWhth",null,null,null,null,null,null,null,null,2,20,{"$f":"IF($N41<Z41,1,0)","v":0},{"$f":"IF($N41>AA41,1,0)","v":0},{"$f":"IF(Eing_Spez_Stromverbrauch=0,1,0)","v":0},"",null,"Der spezifische Stromverbrauch wurde sehr niedrig angenommen. ","Der spezifische Stromverbrauch wurde sehr hoch angenommen.","Der spezifische Stromverbrauch wurde Null gesetzt."]
[127,null,null,null,null,null,null,null,null,null,null,null,"Strompreis",0.13,null,null,"€/kWhel",null,null,null,null,null,null,null,null,4.0000000000000001E-3,0.8,{"$f":"IF($N42<Z42,1,0)","v":0},{"$f":"IF($N42>AA42,1,0)","v":0},{"$f":"IF(Eing_Strompreis=0,1,0)","v":0},"",null,"Der Strompreis wurde sehr niedrig angenommen. ","Der Strompreis wurde sehr hoch angenommen. ","Der Strompreis ist Null. "]
[128,null,null,null,null,null,null,null,null,null,null,null,"Preisentwicklung Strom",5,null,null,"%/a",null,null,null,null,null,null,null,null,1,10,{"$f":"IF($N43<Z43,1,0)","v":0},{"$f":"IF($N43>AA43,1,0)","v":0},0,"",null,"Die Preisentwicklung des Strompreises wurde sehr klein angenommen.","Die Preisentwicklung des Strompreises wurde sehr hoch angenommen."]
[]
[null,null,null,null,null,null,null,null,null,null,null,null,null,null,null,null,null,null,null,null,null,null,null,null,null,null,null,null,null,null,{"$f":"AE46&AE47&AE48&AE49&AE50&AE52&AE53&AE54&AE56&AE57","v":""},"x"]
[130,null,null,null,null,null,null,null,null,null,null,null,"Personalaufwand",15000,null,null,"€/a",null,null,null,null,null,null,null,null,0,999999,{"$f":"IF($N46<Z46,1,0)","v":0},{"$f":"IF($N46>AA46,1,0)","v":0},0,{"$f":"IF(AB46>0,AG46,\"\")&IF(AC46>0,AH46,\"\")&IF(AD46>0,AI46,\"\")","v":""},null,"Der jährliche Personalaufwand ist sehr niedrig.","Der jährliche Personalaufwand ist zu hoch."]
[131,null,null,null,null,null,null,null,null,null,null,null,"Entwicklung Personalaufwand",2,null,null,"%",null,null,null,null,null,null,null,null,0,10,0,0,0,"",null,"Die Preisentwicklung des Personalaufwands wurde sehr niedrig angenommen.","Die Preisentwicklung des Personalaufwands wurde sehr hoch angenommen."]
[132,null,null,null,null,null,null,null,null,null,null,null,"Buchhaltung & Beratungsaufwand",0,null,null,"€/a",null,null,null,null,null,null,null,null,0,999999,0,0,0,"",null,"Der jährliche Buchhaltungs- und Beratungsaufwand ist sehr niedrig.","Der jährliche Buchhaltungs- und Beratungsaufwand ist zu hoch."]
[133,null,null,null,null,null,null,null,null,null,null,null,"Entwicklung Buchhaltung u. Beratung",2,null,null,"%",null,null,null,null,null,null,null,null,0,10,0,0,0,"",null,"Die Preisentwicklung des Buchhaltungs- und Beratungsaufwands wurde sehr niedrig angenommen.","Die Preisentwicklung des Buchhaltungs- und Beratungsaufwands wurde sehr hoch angenommen."]
[134,null,null,null,null,null,null,null,null,null,null,null,"Instandhaltung",9000,null,null,"€/a",null,null,null,null,null,null,null,null,0,999999,0,0,0,"",null,"Der jährliche Aufwand für Instandhaltung ist sehr niedrig.","Der jährliche Aufwand für Instandhaltung ist zu hoch."]
[135,null,null,null,null,null,null,null,null,null,null,null,"Entwicklung Instandhaltung",2,null,null,"%",null,null,null,null,null,null,null,null,0,10,0,0,0,"",null,"Die Preisentwicklung für Instandhaltung wurde sehr niedrig angenommen.","Die Preisentwicklung für Instandhaltung wurde sehr hoch angenommen."]
[]
[136,null,null,null,null,null,null,null,null,null,null,null,"Kosten für Miete / Pacht / Grundstück",3500,null,null,"€/a",null,null,null,null,null,null,null,null,0,{"$f":"Gesamtinvestition/20","v":117750},{"$f":"IF($N53<Z53,1,0)","v":0},{"$f":"IF($N53>AA53,1,0)","v":0},0,{"$f":"IF(AB53>0,AG53,\"\")&IF(AC53>0,AH53,\"\")&IF(AD53>0,AI53,\"\")","v":""},null,"Die jährlichen Grundstückskosten wurden sehr klein angenommen. ","Die jährlichen Grundstückskosten sind sehr hoch. "]
[137,null,null,null,null,null,null,null,null,null,null,null,"Entwicklung Miete / Pacht / Grundstückskosten",2.5,null,null,"%",null,null,null,null,null,null,null,null,0,5,{"$f":"IF($N54<Z54,1,0)","v":0},{"$f":"IF($N54>AA54,1,0)","v":0},0,{"$f":"IF(AB54>0,AG54,\"\")&IF(AC54>0,AH54,\"\")&IF(AD54>0,AI54,\"\")","v":""},null,"Die Preisentwicklung für Grundstückskosten wurde sehr niedrig angenommen.","Die Preisentwicklung für Grundstückskosten wurde sehr hoch angenommen."]
[]
[138,null,null,null,null,null,null,null,null,null,null,null,"Sonstige Kosten (Versicherungen etc.)",1500,null,null,"€/a",null,null,null,null,null,null,null,null,1000,999999,{"$f":"IF($N56<Z56,1,0)","v":0},{"$f":"IF($N56>AA56,1,0)","v":0},{"$f":"IF(Eing_Sonstige_Kosten=0,1,0)","v":0},{"$f":"IF(AB56>0,AG56,\"\")&IF(AC56>0,AH56,\"\")&IF(AD56>0,AI56,\"\")","v":""},null,"Die sonstigen Kosten sind sehr niedrig. ","Die sonstigen Kosten sind sehr hoch. ","Die sonstigen Kosten wurden mit Null angenommen. "]
[139,null,null,null,null,null,null,null,null,null,null,null,"Entwicklung Sonstige Kosten",3,null,null,"%",null,null,null,null,null,null,null,null,0.5,5,{"$f":"IF($N57<Z57,1,0)","v":0},{"$f":"IF($N57>AA57,1,0)","v":0},0,{"$f":"IF(AB57>0,AG57,\"\")&IF(AC57>0,AH57,\"\")&IF(AD57>0,AI57,\"\")","v":""},null,"Die Preisentwicklung für sonstige Kosten wurde sehr niedrig angenommen.","Die Preisentwicklung für sonstige Kosten wurde sehr hoch angenommen."]
[]
[150,"Investitionskosten"]
[null,null,null,null,null,null,null,null,null,null,null,null,null,null,null,null,null,null,null,null,null,null,null,null,null,null,null,null,null,null,{"$f":"AE61&AE62&AE63&AE64&AE65&AE66","v":""},"x"]
[151,null,null,null,null,null,null,null,null,null,null,null,"Anlagenkosten förderfähig",520000,null,null,"€",null,null,null,null,null,null,null,null,10000,999999999,{"$f":"IF($N61<Z61,1,0)","v":0},{"$f":"IF($N61>AA61,1,0)","v":0},0,{"$f":"IF(AB61>0,AG61,\"\")&IF(AC61>0,AH61,\"\")&IF(AD61>0,AI61,\"\")","v":""},null,"Die Anlagekosten sind sehr niedrig.","Die Anlagekosten sind sehr hoch. "]
[152,null,null,null,null,null,null,null,null,null,null,null,"Fernwärmenetz förderfähig",1200000,null,null,"€",null,null,null,null,null,null,null,null,10000,999999999,0,0,0,{"$f":"IF(AB62>0,AG62,\"\")&IF(AC62>0,AH62,\"\")&IF(AD62>0,AI62,\"\")","v":""},null,"Die Kosten für das Fernwärmenetz sind sehr niedrig.","Die Kosten für das Fernwärmenetz sind sehr hoch. "]
[153,null,null,null,null,null,null,null,null,null,null,null,"Baukosten förderfähig",450000,null,null,"€",null,null,null,null,null,null,null,null,10000,999999999,0,0,0,{"$f":"IF(AB63>0,AG63,\"\")&IF(AC63>0,AH63,\"\")&IF(AD63>0,AI63,\"\")","v":""},null,"Die Baukosten sind sehr niedrig.","Die Baukosten sind sind sehr hoch. "]
[154,null,null,null,null,null,null,null,null,null,null,null,"Planungs- und QM Kosten förderfähig",120000,null,null,"€",null,null,null,null,null,null,null,null,1000,999999999,0,0,{"$f":"IF(Eing_Kosten_PlanungQM<Gesamtinvestition/50,1,0)","v":0},{"$f":"IF(AB64>0,AG64,\"\")&IF(AC64>0,AH64,\"\")&IF(AD64>0,AI64,\"\")","v":""},null,"Die Planungskosten sind sehr niedrig.","Die Planungskosten sind sind sehr hoch. ","Die Planungskosten sind unter 2% der Investitionskosten. "]
[155,null,null,null,null,null,null,null,null,null,null,null,"Nicht förderfähige Kosten",65000,null,null,"€",null,null,null,null,null,null,null,null,0,999999999,0,0,0,null,null,"Die nicht förderfähigen Kosten sind negativ.","Die nicht förderfähigen Kosten sind sehr hoch. "]
[156,null,null,null,null,null,null,null,null,null,null,null,"Gesamte Investitionskosten",{"$f":"SUM(N61:P65)","v":2355000},null,null,"€",null,null,null,null,null,null,null,null,0,999999999,0,0,0]
[]
[160,"Eigenmittel, Fremdfinanzierung, Förderquote"]
[null,null,null,null,null,null,null,null,null,null,null,null,null,null,null,null,null,null,null,null,null,null,null,null,null,null,null,null,null,null,{"$f":"AE70&AE71&AE72","v":""},"x"]
[161,null,null,null,null,null,null,null,null,null,null,null,"Eigenmittelanteil",300000,null,null,"€",null,null,null,null,null,null,null,null,0,{"$f":"Gesamtinvestition","v":2355000},{"$f":"IF($N70<=Z70,1,0)","v":0},{"$f":"IF($N70>AA70,1,0)","v":0},0,{"$f":"IF(AB70>0,AG70,\"\")&IF(AC70>0,AH70,\"\")&IF(AD70>0,AI70,\"\")","v":""},null,"Der Eigenmittelanteil ist Null oder negativ.","Der Eigenmittelanteil ist höher als die gesamten Investitionskosten. "]
[162,null,null,null,null,null,null,null,null,null,null,null,"Laufzeit des Kredits in Jahren",20,null,null,"Jahre",null,null,null,null,null,null,null,null,5,25,{"$f":"IF($N71<=Z71,1,0)","v":0},{"$f":"IF($N71>AA71,1,0)","v":0},0,{"$f":"IF(AB71>0,AG71,\"\")&IF(AC71>0,AH71,\"\")&IF(AD71>0,AI71,\"\")","v":""},null,"Die Kreditlaufzeit ist zu kurz. ","Die Kreditlaufzeit darf nicht über 25 Jahren liegen! "]
[163,null,null,null,null,null,null,null,null,null,null,null,"Kreditzinssatz",5.5,null,null,"%",null,null,null,null,null,null,null,null,3,10,{"$f":"IF($N72<=Z72,1,0)","v":0},{"$f":"IF($N72>AA72,1,0)","v":0},0,{"$f":"IF(AB72>0,AG72,\"\")&IF(AC72>0,AH72,\"\")&IF(AD72>0,AI72,\"\")","v":""},null,"Der angegebene Kreditzinssatz ist sehr niedrig.","Der Kreditzinssatz ist sehr hoch."]
[]
[null,"Förderung",null,null,null,null,null,null,null,null,null,null,null,null,null,null,null,null,null,null,null,null,null,null,null,null,null,null,null,null,{"$f":"AE76&AE77&AE80&AE81&AE85","v":""},"x"]
[null,null,null,null,null,null,null,null,null,null,null,null,"Investitionsförderung","x"]
[164,null,null,null,null,null,null,null,null,null,null,null,"Förderquote",30,null,null,"%",null,null,null,null,null,null,null,null,0,60,{"$f":"IF($N76<Z76,1,0)","v":0},{"$f":"IF($N76>AA76,1,0)","v":0},0,{"$f":"IF(AB76>0,AG76,\"\")&IF(AC76>0,AH76,\"\")&IF(AD76>0,AI76,\"\")","v":""},null,"Die angegebene Förderquote ist zu niedrig.","Die angegebene Förderquote ist sehr hoch. "]
[165,null,null,null,null,null,null,null,null,null,null,null,"Zeitpunkt der Förderungsauszahlung",5,null,null,"Jahr (1-5)",null,null,null,null,null,null,null,null,1,5,{"$f":"IF($N77<Z77,1,0)","v":0},{"$f":"IF($N77>AA77,1,0)","v":0},{"$f":"IF(Eing_Jahr_der_Förderung=0,1,IF(Eing_Jahr_der_Förderung/(INT(Eing_Jahr_der_Förderung))<>1,1,0))","v":0},{"$f":"IF(AB77>0,AG77,\"\")&IF(AC77>0,AH77,\"\")&IF(AD77>0,AI77,\"\")","v":""},null,"Der Förderbetrag darf frühestens im Jahr 1 angenommen werden!","Der Förderbetrag darf spätestens im Jahr 5 angenommen werden!","Der Förderbetrag darf nur im Jahr 1,2,3,4 oder 5 angesetzt werden, Komma-Angaben sind nicht zulässig."]
[]
[166,null,null,null,null,null,null,null,null,null,null,null,"Laufende Förderung pro Jahr (z.B. Klimarappen)","x"]
[167,null,null,null,null,null,null,null,null,null,null,null,"Betrag im 1. Jahr",3500,null,null,"€",null,null,null,null,null,null,null,null,0,999999999,{"$f":"IF($N80<Z80,1,0)","v":0},{"$f":"IF($N80>AA80,1,0)","v":0},0,{"$f":"IF(AB80>0,AG80,\"\")&IF(AC80>0,AH80,\"\")&IF(AD80>0,AI80,\"\")","v":""},null,"Der Betrag der laufenden Förderung ist im Jahr 1 kleiner Null. ","Der Betrag der laufenden Förderung im Jahr 1 ist sehr hoch."]
[168,null,null,null,null,null,null,null,null,null,null,null,"Erhöhung des Betrages pro Jahr",1000,null,null,"€",null,null,null,null,null,null,null,null,0,999999999,{"$f":"IF($N81<Z81,1,0)","v":0},{"$f":"IF($N81>AA81,1,0)","v":0},0,{"$f":"IF(AB81>0,AG81,\"\")&IF(AC81>0,AH81,\"\")&IF(AD81>0,AI81,\"\")","v":""},null,"Die Erhöhung des Förderbetrages pro jahr ist negativ.","Die Erhöhung des Förderbetrages pro jahr ist sehr hoch."]
[169,null,null,null,null,null,null,null,null,null,null,null,"Prozentuelle Erhöhung des Betrages pro Jahr",3,null,null,"%",null,null,null,null,null,null,null,null,0,10,{"$f":"IF($N82<Z82,1,0)","v":0},{"$f":"IF($N82>AA82,1,0)","v":0},0,{"$f":"IF(AB82>0,AG82,\"\")&IF(AC82>0,AH82,\"\")&IF(AD82>0,AI82,\"\")","v":""},null,"Die prozentuelle Erhöhung des Betrages der laufenden Förderung ist negativ.","Die prozentuelle Erhöhung des Betrages der laufenden Förderung ist sehr hoch."]
[]
[170,"Kapitalwertberechnung"]
[171,null,null,null,null,null,null,null,null,null,null,null,"Kalkulatorischer Zinssatz",6,null,null,"%",null,null,null,null,null,null,null,null,2,10,{"$f":"IF($N85<Z85,1,0)","v":0},{"$f":"IF($N85>AA85,1,0)","v":0},{"$f":"IF(Eing_Jahr_der_Förderung=0,1,IF(Eing_Jahr_der_Förderung/(INT(Eing_Jahr_der_Förderung))<>1,1,0))","v":0},{"$f":"IF(AB85>0,AG85,\"\")&IF(AC85>0,AH85,\"\")&IF(AD85>0,AI85,\"\")","v":""},null,"Der angenommene Abzinsungssatz ist sehr niedrig.","Der angenommene Abzinsungssatz ist sehr hoch."]
[]
[]
[180,"Errechnete Werte"]
[]
[181,null,null,null,null,null,null,null,null,null,null,null,"Anteil der Wärme fossil erzeugt",{"$f":"100-Eing_Anteil_Biomasse","v":5},null,95,"%"]
[182,null,null,null,null,null,null,null,null,null,null,null,"Erzeugte Wärmemenge",{"$f":"Eing_verkaufteWM/Eing_Jahresnutzungsgrad_Netz*100+N13","v":11071.428571428571},null,95,"MWh"]
[183,null,null,null,null,null,null,null,null,null,null,null,"Eingesetzte Brennstoffwärme",{"$f":"N91/Eing_Jahresnutzungsgrad_Kessel*100","v":13025.210084033612},null,95,"MWh"]
[184,null,null,null,null,null,null,null,null,null,null,null,"Eingesetzte Brennstoffwärme Biomasse",{"$f":"N92*Eing_Anteil_Biomasse/100","v":12373.949579831929},null,95,"MWh"]
[185,null,null,null,null,null,null,null,null,null,null,null,"Eingesetzte Brennstoffwärme fossil",{"$f":"N92*(Anteil_fossil_erzeugt/100)","v":651.26050420168065},null,95,"MWh"]
[186,null,null,null,null,null,null,null,null,null,null,null,"Stromkosten",{"$f":"Eing_Spez_Stromverbrauch*Eing_verkaufteWM*Eing_Strompreis","v":10075},null,null,"€"]
[]
[190,null,null,null,null,null,null,null,null,null,null,null,"Gesamte Investitionskosten",{"$f":"Gesamtinvestition","v":2355000},null,null,"€"]
[191,null,null,null,null,null,null,null,null,null,null,null,"Förderfähige Kosten",{"$f":"N66-Eing_Kosten_nichtförderbar","v":2290000},null,null,"€"]
[192,null,null,null,null,null,null,null,null,null,null,null,"Förderbetrag",{"$f":"IF(N75=\"x\",N98*Eing_Förderquote/100,0)","v":687000},null,null,"€"]
[193,null,null,null,null,null,null,null,null,null,null,null,"Gesamt bzw. maximal zu finanzierender Betrag",{"$f":"N66-Eing_Eigenmittel","v":2055000},null,null,"€"]
[194,null,null,null,null,null,null,null,null,null,null,null,"Langfristig zu finanzieren (nach Abzug I-Förderung)",{"$f":"Kreditbetrag-FörderBetrag","v":1368000},null,null,"€"]
[]
[195,null,null,null,null,null,null,null,null,null,null,null,"Kreditzinsen Jahr 1 (VOR Förderung)",{"$f":"N100*Eing_Kreditzinssatz/100","v":113025},null,null,"€"]
[196,null,null,null,null,null,null,null,null,null,null,null,"Annuität (jährlicher Betrag an Tilgung und Zinsen)",{"$f":"-PMT(Eing_Kreditzinssatz/100,Eing_Kreditlaufzeit,N101)","v":114473.3234877886},null,{"$f":"PMT(Kreditbetrag,Eing_Kreditzinssatz,Eing_Kreditlaufzeit)","v":-41100000},"€"]
[197,null,null,null,null,null,null,null,null,null,null,null,"Annuität bis Förderungsauszahlung",{"$f":"Annuität_Kredit+FörderBetrag*Eing_Kreditzinssatz/100","v":152258.32348778861},null,{"$f":"PMT(Kreditbetrag,Eing_Kreditzinssatz,Eing_Kreditlaufzeit)","v":-41100000},"€"]

{"sheet":"Wärmepreis","index":2,"n_rows":60,"n_cols":12,"rows_kept":60,"cut":false,"hidden":false,"merged":[[11,2,11,8],[2,3,2,8],[62,8,62,13],[15,3,15,4],[25,3,25,4],[35,3,35,4]]}
[null,"qm heizwerke - Wirtschaftlichkeitsmodell - Wärmepreis"]
[]
[null,"Projekttitel:",null,{"$f":"IF(Eingabe!F4<>\"\",Eingabe!F4,\"\")","v":"Musterprojekt Mustermann"}]
[]
[100,"(exkl. USt)",null,"Eingabefeld"]
[]
[401,"Variante","x","Berechnung aus Grundpreis, Meßpreis und Arbeitspreis",null,null,null,null,null,{"$f":"IF(C7=\"x\",(G23*G16+G26*G33+G36*G43)/100*1000,G48)","v":61.863636363636367}]
[402,null,null,"Preisstaffelung bei höheren Abnahmemengen",null,null,null,null,null,{"$f":"IF(C8=\"x\",(J60+K60+L60)/100*1000,0)","v":0}]
[]
[403,"Ermittelter Wärmepreis:",null,null,{"$f":"IF(AND(C7=\"x\",C8=\"x\"),J8,J7)","v":61.863636363636367},"€/MWh",null,{"$f":"E10/1000","v":6.1863636363636364E-2},"€/kWh","Fehler","Warnung"]
[]
[null,"Warnungen:",{"$f":"IF(J12>0,K12,\"\")","v":""},null,null,null,null,null,null,{"$f":"SUM(J14:J43)","v":0},{"$f":"K14&K16&K17&K18&K19&K20&K21&K23&K26&K27&K28&K29&K30&K31&K33&K36&K37&K38&K39&K40&K41&K43&K7","v":""}]
[]
[404,"Berechnung aus Grundpreis, Meßpreis und Arbeitspreis",null,null,null,null,null,null,null,{"$f":"IF(G16+G26+G36>100,1,0)","v":0},{"$f":"IF(J14>0,L14,\"\")","v":""},"Mehr als 100% Wärmemenge angegeben! Unbedingt korrigieren!"]
[]
[405,"Abnehmerart 1",null,"Privater Abnehmer",null,null,15,"% der Wärmemenge",null,{"$f":"IF(G16+G26+G36<100,1,0)","v":0},{"$f":"IF(J16>0,L16,\"\")","v":""},"Weniger als 100% Wärmemenge angegeben! "]
[406,null,null,null,null,"Grundpreis",60,"€/kW",null,null,{"$f":"IF(J17>0,L17,\"\")","v":""}]
[407,null,null,null,null,"Meßpreis",60,"€/a",null,null,""]
[408,null,null,null,null,"Arbeitspreis",4.4999999999999998E-2,"€/kWh",null,null,""]
[409,null,null,null,null,"Durchschnittliche Anschlussleistung",14,"kW",null,{"$f":"IF(G20>G30,1,0)","v":0},"","Anschlussleistung Privatabnehmer ist größer als bei gewerblichem Abnehmer! "]
[410,null,null,null,null,"Durchschnittliche Wärmeabnahme",24000,"kWh",null,null,""]
[null,null,null,null,null,null,null,null,null,null,""]
[411,null,null,null,null,"gemittelter Wärmepreis",{"$f":"(G17*G20+G18+G19*G21)/G21","v":8.2500000000000004E-2},"€/kWh",null,null,""]
[null,null,null,null,null,null,null,null,null,null,""]
[null,null,null,null,null,null,null,null,null,null,""]
[412,"Abnehmerart 2",null,"Gewerblicher Abnehmer",null,null,25,"% der Wärmemenge",null,null,""]
[406,null,null,null,null,"Grundpreis",50,"€/kW",null,null,""]
[407,null,null,null,null,"Meßpreis",90,"€/a",null,null,""]
[408,null,null,null,null,"Arbeitspreis",0.04,"€/kWh",null,null,""]
[409,null,null,null,null,"Durchschnittliche Anschlussleistung",35,"kW",null,{"$f":"IF(G30>G40,1,0)","v":0},"","Anschlussleistung Gewerblicher Abn. ist größer als bei Industriellem Abnehmer! "]
[410,null,null,null,null,"Durchschnittliche Wärmeabnahme",55000,"kWh",null,null,""]
[null,null,null,null,null,null,null,null,null,null,""]
[411,null,null,null,null,"gemittelter Wärmepreis",{"$f":"(G27*G30+G28+G29*G31)/G31","v":7.3454545454545453E-2},"€/kWh",null,null,""]
[null,null,null,null,null,null,null,null,null,null,""]
[null,null,null,null,null,null,null,null,null,null,""]
[413,"Abnehmerart 3",null,"Großabnehmer",null,null,60,"% der Wärmemenge",null,null,""]
[406,null,null,null,null,"Grundpreis",10,"€/kW",null,null,""]
[407,null,null,null,null,"Meßpreis",250,"€/a",null,null,""]
[408,null,null,null,null,"Arbeitspreis",0.03,"€/kWh",null,null,""]
[409,null,null,null,null,"Durchschnittliche Anschlussleistung",500,"kW",null,null,""]
[410,null,null,null,null,"Durchschnittliche Wärmeabnahme",240000,"kWh",null,null,""]
[null,null,null,null,null,null,null,null,null,null,""]
[411,null,null,null,null,"gemittelter Wärmepreis",{"$f":"(G37*G40+G38+G39*G41)/G41","v":5.1874999999999998E-2},"€/kWh",null,null,""]
[]
[]
[414,"Direkte Eingabe des Wärmepreises",null,null,null,null,null,null,null,{"$f":"IF(G48+G61+G71>100,1,0)","v":0},{"$f":"IF(J46>0,L46,\"\")","v":""},"Mehr als 100% Wärmemenge angegeben! Unbedingt korrigieren!"]
[]
[414,null,null,null,null,"Durchschnittlicher Wärmepreis",55,"€/MWh",null,{"$f":"IF(G48+G61+G71<100,1,0)","v":1},{"$f":"IF(J48>0,L48,\"\")","v":"Weniger als 100% Wärmemenge angegeben! "},"Weniger als 100% Wärmemenge angegeben! "]
[]
[415,"Preisstaffelung bei höheren Wärmeabnahmemengen"]
[]
[]
[null,null,null,"Untergrenze","Obergrenze"]
[null,"Rabatt",null,"Von kWh/a","bis kWh/a",null,"Preisfaktor",null,null,"Preis1","Preis 2","Preis 3"]
[416,"Stufe1",null,0,50000,"kWh/a",1,null,null,{"$f":"IF($G$21<$E55,$G$23*$G55*$G$16,0)","v":1.2375},{"$f":"IF($G$31<$E55,$G$33*$G55*$G$26,0)","v":0},{"$f":"IF($G$41<$E55,$G$43*$G55*$G$36,0)","v":0}]
[417,"Stufe2",null,{"$f":"E55+1","v":50001},120000,"kWh/a",0.95,null,null,{"$f":"IF(J55>0,0,IF($G$21<$E56,$G$23*$G56*$G$16,0))","v":0},{"$f":"IF(K55>0,0,IF($G$31<$E56,$G$33*$G56*$G$26,0))","v":1.7445454545454546},{"$f":"IF(L55>0,0,IF($G$41<$E56,$G$43*$G56*$G$36,0))","v":0}]
[418,"Stufe3",null,{"$f":"E56+1","v":120001},180000,"kWh/a",0.92,null,null,{"$f":"IF(J56+J55>0,0,IF($G$21<$E57,$G$23*$G57*$G$16,0))","v":0},{"$f":"IF(K55+K56>0,0,IF($G$31<$E57,$G$33*$G57*$G$26,0))","v":0},{"$f":"IF(L56+L55>0,0,IF($G$41<$E57,$G$43*$G57*$G$36,0))","v":0}]
[419,"Stufe4",null,{"$f":"E57+1","v":180001},350000,"kWh/a",0.88,null,null,{"$f":"IF(J55+J56+J57>0,0,IF($G$21<$E58,$G$23*$G58*$G$16,0))","v":0},{"$f":"IF(K55+K56+K57>0,0,IF($G$31<$E58,$G$33*$G58*$G$26,0))","v":0},{"$f":"IF(L55+L56+L57>0,0,IF($G$41<$E58,$G$43*$G58*$G$36,0))","v":2.7389999999999999}]
[420,"Stufe5",null,{"$f":"E58+1","v":350001},{"$f":"1E+99","v":9.9999999999999997E+98},"kWh/a",0.85,null,null,{"$f":"IF(J55+J56+J57+J58>0,0,IF($G$21<$E59,$G$23*$G59*$G$16,0))","v":0},{"$f":"IF(K55+K56+K57+K58>0,0,IF($G$31<$E59,$G$33*$G59*$G$26,0))","v":0},{"$f":"IF(L55+L56+L57+L58>0,0,IF($G$41<$E59,$G$43*$G59*$G$36,0))","v":0}]
[null,null,null,null,null,null,null,null,null,{"$f":"SUM(J55:J59)","v":1.2375},{"$f":"SUM(K55:K59)","v":1.7445454545454546},{"$f":"SUM(L55:L59)","v":2.7389999999999999}]

{"sheet":"Ergebnis","index":3,"n_rows":89,"n_cols":23,"rows_kept":89,"cut":false,"hidden":false,"merged":[[2,3,2,8],[3,7,3,8],[4,7,4,8]]}
[900,"qm heizwerke - Wirtschaftlichkeitsmodell - Ergebnis"]
[]
[null,"Projekttitel:",null,{"$f":"IF(Eingabe!F4<>\"\",Eingabe!F4,\"\")","v":"Musterprojekt Mustermann"},null,null,null,null,null,null,null,{"$f":"IF(Eingabe!E8&Wärmepreis!C12<>\"\",\"Es existieren Warnungen\",\"\")","v":""}]
[156,"Investition:",null,{"$f":"Gesamtinvestition","v":2355000},"€",null,"Förderbetrag:",{"$f":"IF(Eingabe!N75=\"x\",FörderBetrag,0)","v":687000},null,"€"]
[161,"EK - Anteil",null,{"$f":"Eing_Eigenmittel","v":300000},"€",null,"Projektbeginn:",{"$f":"Eing_Beginnjahr","v":2009}]
[]
[901,"Betriebskosten (100% Auslastung Jahr 1)",null,null,null,null,"Betrag [€]","Index [%]","Basis [a]",null,905,"Erlöse (bez. 100% Auslastung Jahr 1)",null,null,null,"Betrag [€]","Index [%]","Basis [a]"]
[null,null,null,null,null,null,{"$f":"SUM(G10:G17)","v":397268.27731092426},{"$f":"(G10*H10+G11*H11+G12*H12+G13*H13+G14*H14+G15*H15+G16*H16+G17*H17)/(SUM(G10:G17))","v":2.3596732305762518E-2},{"$f":"Eing_Beginnjahr","v":2009},null,null,null,null,null,null,{"$f":"SUM(P10:P12)","v":507250},{"$f":"(P10*Q10+P11*Q11+P12*Q12)/(SUM(P10:P12))","v":2.5034499753573188E-2},{"$f":"Eing_Beginnjahr","v":2009}]
[]
[null,"Brennstoff Biomasse",null,null,null,null,{"$f":"Eing_Rohstoffpreis_Biomasse*Eingesetzte_Brennstoffwärme_Biomasse","v":321722.68907563016},{"$f":"Eing_Preisentwicklung_Biomasse/100","v":0.02},2009,null,null,"Fernwärme",null,null,null,{"$f":"Eing_verkaufteWM*Eing_Wärmeverkaufspreis","v":503750},{"$f":"Eing_Preisentwicklung_Wärmepreis/100","v":2.5000000000000001E-2},{"$f":"Eing_Beginnjahr","v":2009}]
[null,"Brennstoff fossil",null,null,null,null,{"$f":"Eingesetzte_Brennstoffwärme_fossil*Eing_Rohstoffpreis_fossil","v":36470.588235294119},{"$f":"Eing_Preisentwicklung_fossil/100","v":0.05},2009,null,null,"Laufende Förderung",null,null,null,{"$f":"IF(Eingabe!$N$79=\"x\",Eing_laufend_FoerdJahr1,0)","v":3500},{"$f":"IF(P11=0,0,Eing_laufend_ErhoehungProzent/100)","v":0.03},{"$f":"IF(P11=0,\"\",Eing_Beginnjahr)","v":2009}]
[null,"Personal",null,null,null,null,{"$f":"Eing_Personalaufwand","v":15000},{"$f":"Eing_Preisentwicklung_Personal/100","v":0.02},2009,null,null,"Sonstige Erlöse",null,null,null,{"$f":"Eing_Sonstige_Erlöse","v":0},{"$f":"IF(P12=0,0,Eing_Preisentwicklung_SonstigeErlöse/100)","v":0},{"$f":"IF(P12=0,\"\",Eing_Beginnjahr)","v":""}]
[null,"Strom",null,null,null,null,{"$f":"Eingabe!N95","v":10075},{"$f":"Eing_Preisentwicklung_Strom/100","v":0.05},2009,null,910,"Ergebnisse:",null,null,null,"Betrag [€]"]
[null,"Buchhaltung & Beratung",null,null,null,null,{"$f":"Eing_Beratungsaufwand","v":0},{"$f":"IF(G14=0,0,Eing_Preisentwicklung_Beratung/100)","v":0},{"$f":"IF(G14=0,\"\",Eing_Beginnjahr)","v":""},null,null,"Kapitalwert (Periode 1-10)",null,null,null,{"$f":"NPV(Abzinsungssatz/100,R25:R$34)","v":-69025.991397296588}]
[null,"Instandhaltung",null,null,null,null,{"$f":"Eing_Instandhaltung","v":9000},{"$f":"Eing_Preisentwicklung_Instandhaltung/100","v":0.02},2009,null,null,"Kapitalwert (Periode 1-15)",null,null,null,{"$f":"NPV(Abzinsungssatz/100,R25:R$39)","v":55082.915814229418}]
[null,"Miete /Pacht / Grundstückskosten",null,null,null,null,{"$f":"Eing_Kosten_Grundstück","v":3500},{"$f":"IF(G16=0,0,Eing_Preisentwicklung_Miete/100)","v":2.5000000000000001E-2},{"$f":"IF(G16=0,\"\",Eing_Beginnjahr)","v":2009},null,null,"Kapitalwert (Periode 1-20)",null,null,null,{"$f":"NPV(Abzinsungssatz/100,R25:R$44)","v":196416.82715755884}]
[null,"Sonstige (Versicherung etc.)",null,null,null,null,{"$f":"Eing_Sonstige_Kosten","v":1500},{"$f":"IF(G17=0,0,eing_Preisentwicklung_Sonstige_Kosten/100)","v":0.03},{"$f":"IF(G17=0,\"\",Eing_Beginnjahr)","v":2009},null,null,"Kapitalwert (Periode 1-25)",null,null,null,{"$f":"NPV(Abzinsungssatz/100,R25:R$49)","v":491013.60457796452}]
[]
[]
[920,null,null,"Auszahlungen",null,null,null,null,null,null,null,null,"Einzahlungen"]
[]
["930- \n950","Jahr","Aus-lastung","Brennstoff Biomasse","Brennstoff fossil","Personal Buch+Beratung","Strom","Instand-\nhaltung","Sonstige\n+ Miete/\nPacht","Zusätzl. Aufwand/ Kosten","Annuität + Invest. Eigenm.","Betriebs-\nkosten + Tilgung","Fernwärme","BKZ /\nFörderung ","Zusätzl. Erträge /lfd. Förd.","Sonstige Erlöse","Gesamt Erlöse ","Zahlungs-überschuss/Fehlbetrag","Kumulierter ZahlungsÜS / Fehlbetrag",null,"Jahr","Kreditstand (informativ)","Förderung (informativ)"]
[null,null,1,2,3,4,5,6,7,8,9,"10=2+3+4+ 5+6+7+8+9",11,12,13,14," 15 = 11+12 +13+14"," 17 = 15 - 10","18 = 17 + 18(VJ)",null,null,18,19]
[null,"[JJJJ]","%","€/a","€/a","€/a","€/a","€/a","€/a","€/a","€/a","€/a","€/a","€/a","€/a","€/a","€/a","€/a",null,null,null,"€","€"]
[null,{"$f":"Eing_Beginnjahr","v":2009},{"$f":"Eing_Wärmeabnahme_Jahr1","v":60},{"$f":"Eingesetzte_Brennstoffwärme_Biomasse*C25/100*Eing_Rohstoffpreis_Biomasse","v":193033.61344537808},{"$f":"Eingesetzte_Brennstoffwärme_fossil*Eing_Rohstoffpreis_fossil*C25/100","v":21882.352941176472},{"$f":"Eing_Personalaufwand+Eing_Beratungsaufwand","v":15000},{"$f":"Eing_Spez_Stromverbrauch*Eing_verkaufteWM*Eing_Strompreis*C25/100","v":6045},{"$f":"Eingabe!N50","v":9000},{"$f":"Eing_Kosten_Grundstück+Eing_Sonstige_Kosten","v":5000},0,{"$f":"IF(Eing_Jahr_der_Förderung=1,Annuität_Kredit,Annuität_Kredit_bisFörd)+Eing_Eigenmittel","v":452258.32348778861},{"$f":"SUM(D25:K25)","v":702219.2898743432},{"$f":"Eing_verkaufteWM*C25/100*Eing_Wärmeverkaufspreis","v":302250},{"$f":"Eing_Baukostenzuschuss*C25/100","v":210000},{"$f":"IF(Eingabe!$N$79=\"x\",Eing_laufend_FoerdJahr1,0)","v":3500},{"$f":"P12","v":0},{"$f":"SUM(M25:P25)","v":515750},{"$f":"-L25+Q25","v":-186469.2898743432},null,null,1,{"$f":"IF(ISNUMBER(-Kreditbetrag-PPMT(Eing_Kreditzinssatz/100,$U25,Eing_Kreditlaufzeit,Kreditbetrag_langfristig,0)+$W25),-Kreditbetrag-PPMT(Eing_Kreditzinssatz/100,$U25,Eing_Kreditlaufzeit,Kreditbetrag_langfristig,0)+$W25,0)","v":-2015766.6765122113},{"$f":"IF(Eing_Jahr_der_Förderung=1,IstFörderBetrag,0)","v":0}]
[null,{"$f":"B25+1","v":2010},{"$f":"Eing_Wärmeabnahme_Jahr2","v":80},{"$f":"Eingesetzte_Brennstoffwärme_Biomasse*C26/100*Eing_Rohstoffpreis_Biomasse*(1+$H$10)^1","v":262525.7142857142},{"$f":"Eingesetzte_Brennstoffwärme_fossil*Eing_Rohstoffpreis_fossil*C26/100*(1+$H$11)^1","v":30635.294117647063},{"$f":"$G$12*(1+$H$12)^(B26-B$25)+$G$14*(1+$H$14)^(B26-B$25)","v":15300},{"$f":"Eing_Spez_Stromverbrauch*Eing_verkaufteWM*Eing_Strompreis*(C26/100)*(1+$H$13)","v":8463},{"$f":"H25*(1+$H$15)","v":9180},{"$f":"$G$16*(1+$H$16)^(B26-B$25)+$G$17*(1+$H$17)^(B26-B$25)","v":5132.5},0,{"$f":"IF(Eing_Jahr_der_Förderung<=2,Annuität_Kredit,Annuität_Kredit_bisFörd)","v":152258.32348778861},{"$f":"SUM(D26:K26)","v":483494.83189114986},{"$f":"Eing_verkaufteWM*C26/100*Eing_Wärmeverkaufspreis*(1+$Q$10)","v":413074.99999999994},{"$f":"Eing_Baukostenzuschuss*(C26-C25)/100","v":70000},{"$f":"IF(Eingabe!$N$79=\"x\",O25+Eing_laufend_ErhoehungBetrag+Eing_laufend_ErhoehungProzent*O25/100,0)","v":4605},{"$f":"$P$25*(1+$Q$12)^1","v":0},{"$f":"SUM(M26:P26)","v":487679.99999999994},{"$f":"-L26+Q26","v":4185.1681088500773},{"$f":"R25+R26","v":-182284.12176549312},null,2,{"$f":"IF(ISNUMBER(V25-PPMT(Eing_Kreditzinssatz/100,$U26,Eing_Kreditlaufzeit,Kreditbetrag_langfristig,0)+$W26),V25-PPMT(Eing_Kreditzinssatz/100,$U26,Eing_Kreditlaufzeit,Kreditbetrag_langfristig,0)+$W26,0)","v":-1974375.5202325943},{"$f":"IF(Eing_Jahr_der_Förderung=2,FörderBetrag,0)","v":0}]
[null,{"$f":"B26+1","v":2011},{"$f":"Eing_Wärmeabnahme_Jahr3","v":100},{"$f":"Eingesetzte_Brennstoffwärme_Biomasse*C27/100*Eing_Rohstoffpreis_Biomasse*(1+$H$10)^2","v":334720.28571428562},{"$f":"Eingesetzte_Brennstoffwärme_fossil*Eing_Rohstoffpreis_fossil*C27/100*(1+$H$11)^2","v":40208.823529411769},15606,{"$f":"Eing_Spez_Stromverbrauch*Eing_verkaufteWM*Eing_Strompreis*(C27/100)*(1+$H$13)^2","v":11107.6875},{"$f":"H26*(1+$H$15)","v":9363.6},5268.5374999999995,0,{"$f":"IF(Eing_Jahr_der_Förderung<=3,Annuität_Kredit,Annuität_Kredit_bisFörd)","v":152258.32348778861},568533.25773148588,{"$f":"Eing_verkaufteWM*C27/100*Eing_Wärmeverkaufspreis*(1+$Q$10)^2","v":529252.34375},{"$f":"Eing_Baukostenzuschuss*(C27-C26)/100","v":70000},{"$f":"IF(Eingabe!$N$79=\"x\",O26+Eing_laufend_ErhoehungBetrag+Eing_laufend_ErhoehungProzent*O26/100,0)","v":5743.15},{"$f":"$P$25*(1+$Q$12)^2","v":0},{"$f":"SUM(M27:P27)","v":604995.49375000002},36462.236018514144,{"$f":"S26+R27","v":-145821.88574697898},null,3,-1930707.8503575984,{"$f":"IF(Eing_Jahr_der_Förderung=3,FörderBetrag,0)","v":0}]
[null,2012,{"$f":"$C$27*(IF(((1+Eingabe!$N$20/100)^1)>(1+Eing_Max_Steig_Wärmeabnahmegrad/100),(1+Eing_Max_Steig_Wärmeabnahmegrad/100),(1+Eingabe!$N$20/100)^1))","v":100},{"$f":"Eingesetzte_Brennstoffwärme_Biomasse*C28/100*Eing_Rohstoffpreis_Biomasse*(1+$H$10)^3","v":341414.6914285713},{"$f":"Eingesetzte_Brennstoffwärme_fossil*Eing_Rohstoffpreis_fossil*C28/100*(1+$H$11)^3","v":42219.264705882357},15918.119999999999,{"$f":"Eing_Spez_Stromverbrauch*Eing_verkaufteWM*Eing_Strompreis*(C28/100)*(1+$H$13)^3","v":11663.071875000001},{"$f":"H27*(1+$H$15)","v":9550.8720000000012},5408.2076874999993,0,{"$f":"IF(Eing_Jahr_der_Förderung<=4,Annuität_Kredit,Annuität_Kredit_bisFörd)","v":152258.32348778861},578432.55118474225,{"$f":"Eing_verkaufteWM*C28/100*Eing_Wärmeverkaufspreis*(1+$Q$10)^3","v":542483.65234374988},{"$f":"Eing_Baukostenzuschuss*(C28-C27)/100","v":0},{"$f":"IF(Eingabe!$N$79=\"x\",O27+Eing_laufend_ErhoehungBetrag+Eing_laufend_ErhoehungProzent*O27/100,0)","v":6915.4444999999996},{"$f":"$P$25*(1+$Q$12)^3","v":0},549399.09684374987,-29033.454340992379,-174855.34008797136,null,4,-1884638.4586394776,{"$f":"IF(Eing_Jahr_der_Förderung=4,FörderBetrag,0)","v":0}]
[null,2013,{"$f":"$C$27*(IF(((1+Eingabe!$N$20/100)^2)>(1+Eing_Max_Steig_Wärmeabnahmegrad/100),(1+Eing_Max_Steig_Wärmeabnahmegrad/100),(1+Eingabe!$N$20/100)^2))","v":100},{"$f":"Eingesetzte_Brennstoffwärme_Biomasse*C29/100*Eing_Rohstoffpreis_Biomasse*(1+$H$10)^4","v":348242.98525714275},{"$f":"Eingesetzte_Brennstoffwärme_fossil*Eing_Rohstoffpreis_fossil*C29/100*(1+$H$11)^4","v":44330.227941176476},16236.482399999999,{"$f":"Eing_Spez_Stromverbrauch*Eing_verkaufteWM*Eing_Strompreis*(C29/100)*(1+$H$13)^4","v":12246.225468750001},{"$f":"H28*(1+$H$15)","v":9741.8894400000008},5551.6083321874994,0,{"$f":"IF(Eing_Jahr_der_Förderung<=5,Annuität_Kredit,Annuität_Kredit_bisFörd)","v":114473.3234877886},550822.7423270453,{"$f":"Eing_verkaufteWM*C29/100*Eing_Wärmeverkaufspreis*(1+$Q$10)^4","v":556045.74365234363},{"$f":"Eing_Baukostenzuschuss*(C29-C28)/100","v":0},{"$f":"IF(Eingabe!$N$79=\"x\",O28+Eing_laufend_ErhoehungBetrag+Eing_laufend_ErhoehungProzent*O28/100,0)","v":8122.907835},{"$f":"$P$25*(1+$Q$12)^4","v":0},564168.6514873436,13345.909160298295,-161509.43092767306,null,5,-1149035.2503768604,{"$f":"IF(Eing_Jahr_der_Förderung=5,FörderBetrag,0)","v":687000}]
[null,2014,{"$f":"$C$27*(IF(((1+Eingabe!$N$20/100)^3)>(1+Eing_Max_Steig_Wärmeabnahmegrad/100),(1+Eing_Max_Steig_Wärmeabnahmegrad/100),(1+Eingabe!$N$20/100)^3))","v":100},{"$f":"Eingesetzte_Brennstoffwärme_Biomasse*C30/100*Eing_Rohstoffpreis_Biomasse*(1+$H$10)^5","v":355207.8449622856},{"$f":"Eingesetzte_Brennstoffwärme_fossil*Eing_Rohstoffpreis_fossil*C30/100*(1+$H$11)^5","v":46546.739338235304},16561.212048000001,{"$f":"Eing_Spez_Stromverbrauch*Eing_verkaufteWM*Eing_Strompreis*(C30/100)*(1+$H$13)^5","v":12858.536742187502},{"$f":"H29*(1+$H$15)","v":9936.7272288000004},5698.839856567186,0,{"$f":"IF(B30-$B$25<Eing_Kreditlaufzeit,Annuität_Kredit,0)","v":114473.3234877886},561283.22366386419,{"$f":"Eing_verkaufteWM*C30/100*Eing_Wärmeverkaufspreis*(1+$Q$10)^5","v":569946.88724365213},{"$f":"Eing_Baukostenzuschuss*(C30-C29)/100","v":0},{"$f":"IF(Eingabe!$N$79=\"x\",O29+Eing_laufend_ErhoehungBetrag+Eing_laufend_ErhoehungProzent*O29/100,0)","v":9366.5950700499998},{"$f":"$P$25*(1+$Q$12)^5","v":0},579313.48231370212,18030.258649837924,-143479.17227783514,null,6,-1097758.8656597992,{"$f":"IF(Eing_Jahr_der_Förderung=6,FörderBetrag,0)","v":0}]
[null,2015,{"$f":"$C$27*(IF(((1+Eingabe!$N$20/100)^4)>(1+Eing_Max_Steig_Wärmeabnahmegrad/100),(1+Eing_Max_Steig_Wärmeabnahmegrad/100),(1+Eingabe!$N$20/100)^4))","v":100},{"$f":"Eingesetzte_Brennstoffwärme_Biomasse*C31/100*Eing_Rohstoffpreis_Biomasse*(1+$H$10)^6","v":362312.00186153135},{"$f":"Eingesetzte_Brennstoffwärme_fossil*Eing_Rohstoffpreis_fossil*C31/100*(1+$H$11)^6","v":48874.076305147057},16892.436288960002,{"$f":"Eing_Spez_Stromverbrauch*Eing_verkaufteWM*Eing_Strompreis*(C31/100)*(1+$H$13)^6","v":13501.463579296875},10135.461773376001,5850.0054085386155,0,114473.3234877886,572038.76870463847,{"$f":"Eing_verkaufteWM*C31/100*Eing_Wärmeverkaufspreis*(1+$Q$10)^6","v":584195.55942474341},0,{"$f":"IF(Eingabe!$N$79=\"x\",O30+Eing_laufend_ErhoehungBetrag+Eing_laufend_ErhoehungProzent*O30/100,0)","v":10647.5929221515},{"$f":"$P$25*(1+$Q$12)^6","v":0},594843.15234689496,22804.383642256493,-120674.78863557865,null,7,-1043662.2797832995,{"$f":"IF(Eing_Jahr_der_Förderung=7,FörderBetrag,0)","v":0}]
[null,2016,{"$f":"$C$27*(IF(((1+Eingabe!$N$20/100)^5)>(1+Eing_Max_Steig_Wärmeabnahmegrad/100),(1+Eing_Max_Steig_Wärmeabnahmegrad/100),(1+Eingabe!$N$20/100)^5))","v":100},{"$f":"Eingesetzte_Brennstoffwärme_Biomasse*C32/100*Eing_Rohstoffpreis_Biomasse*(1+$H$10)^7","v":369558.24189876189},{"$f":"Eingesetzte_Brennstoffwärme_fossil*Eing_Rohstoffpreis_fossil*C32/100*(1+$H$11)^7","v":51317.780120404423},17230.285014739198,{"$f":"Eing_Spez_Stromverbrauch*Eing_verkaufteWM*Eing_Strompreis*(C32/100)*(1+$H$13)^7","v":14176.536758261722},10338.171008843521,6005.2109359760489,0,114473.3234877886,583099.5492247754,{"$f":"Eing_verkaufteWM*C32/100*Eing_Wärmeverkaufspreis*(1+$Q$10)^7","v":598800.44841036201},0,{"$f":"IF(Eingabe!$N$79=\"x\",O31+Eing_laufend_ErhoehungBetrag+Eing_laufend_ErhoehungProzent*O31/100,0)","v":11967.020709816044},{"$f":"$P$25*(1+$Q$12)^7","v":0},610767.46912017802,27667.919895402621,-93006.868740176025,null,8,-986590.38168359245,{"$f":"IF(Eing_Jahr_der_Förderung=8,FörderBetrag,0)","v":0}]
[null,2017,{"$f":"$C$27*(IF(((1+Eingabe!$N$20/100)^6)>(1+Eing_Max_Steig_Wärmeabnahmegrad/100),(1+Eing_Max_Steig_Wärmeabnahmegrad/100),(1+Eingabe!$N$20/100)^6))","v":100},{"$f":"Eingesetzte_Brennstoffwärme_Biomasse*C33/100*Eing_Rohstoffpreis_Biomasse*(1+$H$10)^8","v":376949.40673673718},{"$f":"Eingesetzte_Brennstoffwärme_fossil*Eing_Rohstoffpreis_fossil*C33/100*(1+$H$11)^8","v":53883.66912642464},17574.890715033984,{"$f":"Eing_Spez_Stromverbrauch*Eing_verkaufteWM*Eing_Strompreis*(C33/100)*(1+$H$13)^8","v":14885.363596174806},10544.934429020392,6164.5652633661357,0,114473.3234877886,594476.15335454571,{"$f":"Eing_verkaufteWM*C33/100*Eing_Wärmeverkaufspreis*(1+$Q$10)^8","v":613770.45962062106},0,{"$f":"IF(Eingabe!$N$79=\"x\",O32+Eing_laufend_ErhoehungBetrag+Eing_laufend_ErhoehungProzent*O32/100,0)","v":13326.031331110526},{"$f":"$P$25*(1+$Q$12)^8","v":0},627096.49095173157,32620.337597185862,-60386.531142990163,null,9,-926379.52918840142,{"$f":"IF(Eing_Jahr_der_Förderung=9,FörderBetrag,0)","v":0}]
[null,2018,{"$f":"$C$27*(IF(((1+Eingabe!$N$20/100)^7)>(1+Eing_Max_Steig_Wärmeabnahmegrad/100),(1+Eing_Max_Steig_Wärmeabnahmegrad/100),(1+Eingabe!$N$20/100)^7))","v":100},{"$f":"Eingesetzte_Brennstoffwärme_Biomasse*C34/100*Eing_Rohstoffpreis_Biomasse*(1+$H$10)^9","v":384488.39487147192},{"$f":"Eingesetzte_Brennstoffwärme_fossil*Eing_Rohstoffpreis_fossil*C34/100*(1+$H$11)^9","v":56577.852582745872},17926.388529334661,{"$f":"Eing_Spez_Stromverbrauch*Eing_verkaufteWM*Eing_Strompreis*(C34/100)*(1+$H$13)^9","v":15629.631775983546},10755.8331176008,6328.1801705606958,0,114473.3234877886,606179.6045354862,{"$f":"Eing_verkaufteWM*C34/100*Eing_Wärmeverkaufspreis*(1+$Q$10)^9","v":629114.72111113649},0,{"$f":"IF(Eingabe!$N$79=\"x\",O33+Eing_laufend_ErhoehungBetrag+Eing_laufend_ErhoehungProzent*O33/100,0)","v":14725.812271043842},{"$f":"$P$25*(1+$Q$12)^9","v":0},643840.53338218038,37660.92884669418,-22725.602296295983,null,10,-862857.07980597496,{"$f":"IF(Eing_Jahr_der_Förderung=10,FörderBetrag,0)","v":0}]
[null,2019,{"$f":"$C$27*(IF(((1+Eingabe!$N$20/100)^8)>(1+Eing_Max_Steig_Wärmeabnahmegrad/100),(1+Eing_Max_Steig_Wärmeabnahmegrad/100),(1+Eingabe!$N$20/100)^8))","v":100},{"$f":"Eingesetzte_Brennstoffwärme_Biomasse*C35/100*Eing_Rohstoffpreis_Biomasse*(1+$H$10)^10","v":392178.16276890138},{"$f":"Eingesetzte_Brennstoffwärme_fossil*Eing_Rohstoffpreis_fossil*C35/100*(1+$H$11)^10","v":59406.745211883164},18284.916299921355,{"$f":"Eing_Spez_Stromverbrauch*Eing_verkaufteWM*Eing_Strompreis*(C35/100)*(1+$H$13)^10","v":16411.113364782723},10970.949779952816,6496.1704737034324,0,114473.3234877886,618221.38138693338,{"$f":"Eing_verkaufteWM*C35/100*Eing_Wärmeverkaufspreis*(1+$Q$10)^10","v":644842.58913891483},0,{"$f":"IF(Eingabe!$N$79=\"x\",O34+Eing_laufend_ErhoehungBetrag+Eing_laufend_ErhoehungProzent*O34/100,0)","v":16167.586639175157},{"$f":"$P$25*(1+$Q$12)^10","v":0},661010.17577809002,42788.79439115664,20063.192094860657,null,11,-795840.89570751507,{"$f":"IF(Eing_Jahr_der_Förderung=11,FörderBetrag,0)","v":0}]
[null,2020,{"$f":"$C$27*(IF(((1+Eingabe!$N$20/100)^9)>(1+Eing_Max_Steig_Wärmeabnahmegrad/100),(1+Eing_Max_Steig_Wärmeabnahmegrad/100),(1+Eingabe!$N$20/100)^9))","v":100},{"$f":"Eingesetzte_Brennstoffwärme_Biomasse*C36/100*Eing_Rohstoffpreis_Biomasse*(1+$H$10)^11","v":400021.72602427931},{"$f":"Eingesetzte_Brennstoffwärme_fossil*Eing_Rohstoffpreis_fossil*C36/100*(1+$H$11)^11","v":62377.082472477327},18650.614625919781,{"$f":"Eing_Spez_Stromverbrauch*Eing_verkaufteWM*Eing_Strompreis*(C36/100)*(1+$H$13)^11","v":17231.669033021863},11190.368775551873,6668.6541083910997,0,114473.3234877886,630613.43852742983,{"$f":"Eing_verkaufteWM*C36/100*Eing_Wärmeverkaufspreis*(1+$Q$10)^11","v":660963.65386738779},0,{"$f":"IF(Eingabe!$N$79=\"x\",O35+Eing_laufend_ErhoehungBetrag+Eing_laufend_ErhoehungProzent*O35/100,0)","v":17652.614238350408},{"$f":"$P$25*(1+$Q$12)^11","v":0},678616.26810573821,48002.829578308389,68066.021673169045,null,12,-725138.82148363977,{"$f":"IF(Eing_Jahr_der_Förderung=12,FörderBetrag,0)","v":0}]
[null,2021,{"$f":"$C$27*(IF(((1+Eingabe!$N$20/100)^10)>(1+Eing_Max_Steig_Wärmeabnahmegrad/100),(1+Eing_Max_Steig_Wärmeabnahmegrad/100),(1+Eingabe!$N$20/100)^10))","v":100},{"$f":"Eingesetzte_Brennstoffwärme_Biomasse*C37/100*Eing_Rohstoffpreis_Biomasse*(1+$H$10)^12","v":408022.16054476495},{"$f":"Eingesetzte_Brennstoffwärme_fossil*Eing_Rohstoffpreis_fossil*C37/100*(1+$H$11)^12","v":65495.936596101186},19023.626918438178,{"$f":"Eing_Spez_Stromverbrauch*Eing_verkaufteWM*Eing_Strompreis*(C37/100)*(1+$H$13)^12","v":18093.25248467295},11414.176151062911,6845.7522151313096,0,114473.3234877886,643368.22839796008,{"$f":"Eing_verkaufteWM*C37/100*Eing_Wärmeverkaufspreis*(1+$Q$10)^12","v":677487.74521407241},0,{"$f":"IF(Eingabe!$N$79=\"x\",O36+Eing_laufend_ErhoehungBetrag+Eing_laufend_ErhoehungProzent*O36/100,0)","v":19182.192665500919},{"$f":"$P$25*(1+$Q$12)^12","v":0},696669.93787957332,53301.709481613245,121367.73115478229,null,13,-650548.13317745132,{"$f":"IF(Eing_Jahr_der_Förderung=13,FörderBetrag,0)","v":0}]
[null,2022,{"$f":"$C$27*(IF(((1+Eingabe!$N$20/100)^11)>(1+Eing_Max_Steig_Wärmeabnahmegrad/100),(1+Eing_Max_Steig_Wärmeabnahmegrad/100),(1+Eingabe!$N$20/100)^11))","v":100},{"$f":"Eingesetzte_Brennstoffwärme_Biomasse*C38/100*Eing_Rohstoffpreis_Biomasse*(1+$H$10)^13","v":416182.60375566024},{"$f":"Eingesetzte_Brennstoffwärme_fossil*Eing_Rohstoffpreis_fossil*C38/100*(1+$H$11)^13","v":68770.733425906263},19404.09945680694,{"$f":"Eing_Spez_Stromverbrauch*Eing_verkaufteWM*Eing_Strompreis*(C38/100)*(1+$H$13)^13","v":18997.915108906604},11642.45967408417,7027.5892271609373,0,114473.3234877886,656498.72413631377,{"$f":"Eing_verkaufteWM*C38/100*Eing_Wärmeverkaufspreis*(1+$Q$10)^13","v":694424.93884442421},0,{"$f":"IF(Eingabe!$N$79=\"x\",O37+Eing_laufend_ErhoehungBetrag+Eing_laufend_ErhoehungProzent*O37/100,0)","v":20757.658445465946},{"$f":"$P$25*(1+$Q$12)^13","v":0},715182.59728989017,58683.873153576395,180051.60430835868,null,14,-571854.95701442251,{"$f":"IF(Eing_Jahr_der_Förderung=14,FörderBetrag,0)","v":0}]
[null,2023,{"$f":"$C$27*(IF(((1+Eingabe!$N$20/100)^12)>(1+Eing_Max_Steig_Wärmeabnahmegrad/100),(1+Eing_Max_Steig_Wärmeabnahmegrad/100),(1+Eingabe!$N$20/100)^12))","v":100},{"$f":"Eingesetzte_Brennstoffwärme_Biomasse*C39/100*Eing_Rohstoffpreis_Biomasse*(1+$H$10)^14","v":424506.2558307735},{"$f":"Eingesetzte_Brennstoffwärme_fossil*Eing_Rohstoffpreis_fossil*C39/100*(1+$H$11)^14","v":72209.270097201559},19792.181445943083,{"$f":"Eing_Spez_Stromverbrauch*Eing_verkaufteWM*Eing_Strompreis*(C39/100)*(1+$H$13)^14","v":19947.81086435193},11875.308867565853,7214.2929606908474,0,114473.3234877886,670018.44355431525,{"$f":"Eing_verkaufteWM*C39/100*Eing_Wärmeverkaufspreis*(1+$Q$10)^14","v":711785.56231553468},0,{"$f":"IF(Eingabe!$N$79=\"x\",O38+Eing_laufend_ErhoehungBetrag+Eing_laufend_ErhoehungProzent*O38/100,0)","v":22380.388198829925},{"$f":"$P$25*(1+$Q$12)^14","v":0},734165.95051436464,64147.506960049388,244199.11126840807,null,15,-488833.65616242716,{"$f":"IF(Eing_Jahr_der_Förderung=15,FörderBetrag,0)","v":0}]
[null,2024,{"$f":"$C$27*(IF(((1+Eingabe!$N$20/100)^13)>(1+Eing_Max_Steig_Wärmeabnahmegrad/100),(1+Eing_Max_Steig_Wärmeabnahmegrad/100),(1+Eingabe!$N$20/100)^13))","v":100},{"$f":"Eingesetzte_Brennstoffwärme_Biomasse*C40/100*Eing_Rohstoffpreis_Biomasse*(1+$H$10)^15","v":432996.38094738883},{"$f":"Eingesetzte_Brennstoffwärme_fossil*Eing_Rohstoffpreis_fossil*C40/100*(1+$H$11)^15","v":75819.733602061649},20188.02507486194,{"$f":"Eing_Spez_Stromverbrauch*Eing_verkaufteWM*Eing_Strompreis*(C40/100)*(1+$H$13)^15","v":20945.20140756953},12112.81504491717,7405.9947076445333,0,114473.3234877886,683941.47427223227,{"$f":"Eing_verkaufteWM*C40/100*Eing_Wärmeverkaufspreis*(1+$Q$10)^15","v":729580.20137342322},0,{"$f":"IF(Eingabe!$N$79=\"x\",O39+Eing_laufend_ErhoehungBetrag+Eing_laufend_ErhoehungProzent*O39/100,0)","v":24051.799844794823},{"$f":"$P$25*(1+$Q$12)^15","v":0},753632.00121821801,69690.526945985737,313889.63821439381,null,16,-401246.18376357207,{"$f":"IF(Eing_Jahr_der_Förderung=16,FörderBetrag,0)","v":0}]
[null,2025,{"$f":"$C$27*(IF(((1+Eingabe!$N$20/100)^14)>(1+Eing_Max_Steig_Wärmeabnahmegrad/100),(1+Eing_Max_Steig_Wärmeabnahmegrad/100),(1+Eingabe!$N$20/100)^14))","v":100},{"$f":"Eingesetzte_Brennstoffwärme_Biomasse*C41/100*Eing_Rohstoffpreis_Biomasse*(1+$H$10)^16","v":441656.30856633669},{"$f":"Eingesetzte_Brennstoffwärme_fossil*Eing_Rohstoffpreis_fossil*C41/100*(1+$H$11)^16","v":79610.720282164722},20591.78557635918,{"$f":"Eing_Spez_Stromverbrauch*Eing_verkaufteWM*Eing_Strompreis*(C41/100)*(1+$H$13)^16","v":21992.461477948007},12355.071345815513,7602.8293309601513,0,114473.3234877886,698282.50006737281,{"$f":"Eing_verkaufteWM*C41/100*Eing_Wärmeverkaufspreis*(1+$Q$10)^16","v":747819.70640775864},0,{"$f":"IF(Eingabe!$N$79=\"x\",O40+Eing_laufend_ErhoehungBetrag+Eing_laufend_ErhoehungProzent*O40/100,0)","v":25773.353840138669},{"$f":"$P$25*(1+$Q$12)^16","v":0},773593.06024789729,75310.560180524481,389200.19839491829,null,17,-308841.40038277995,{"$f":"IF(Eing_Jahr_der_Förderung=17,FörderBetrag,0)","v":0}]
[null,2026,{"$f":"$C$27*(IF(((1+Eingabe!$N$20/100)^15)>(1+Eing_Max_Steig_Wärmeabnahmegrad/100),(1+Eing_Max_Steig_Wärmeabnahmegrad/100),(1+Eingabe!$N$20/100)^15))","v":100},{"$f":"Eingesetzte_Brennstoffwärme_Biomasse*C42/100*Eing_Rohstoffpreis_Biomasse*(1+$H$10)^17","v":450489.43473766348},{"$f":"Eingesetzte_Brennstoffwärme_fossil*Eing_Rohstoffpreis_fossil*C42/100*(1+$H$11)^17","v":83591.256296272972},21003.621287886366,{"$f":"Eing_Spez_Stromverbrauch*Eing_verkaufteWM*Eing_Strompreis*(C42/100)*(1+$H$13)^17","v":23092.084551845408},12602.172772731823,7804.9353625273952,0,114473.3234877886,713056.8284967161,{"$f":"Eing_verkaufteWM*C42/100*Eing_Wärmeverkaufspreis*(1+$Q$10)^17","v":766515.19906795258},0,{"$f":"IF(Eingabe!$N$79=\"x\",O41+Eing_laufend_ErhoehungBetrag+Eing_laufend_ErhoehungProzent*O41/100,0)","v":27546.55445534283},{"$f":"$P$25*(1+$Q$12)^17","v":0},794061.7535232954,81004.925026579294,470205.12342149758,null,18,-211354.35391604426,{"$f":"IF(Eing_Jahr_der_Förderung=18,FörderBetrag,0)","v":0}]
[null,2027,{"$f":"$C$27*(IF(((1+Eingabe!$N$20/100)^16)>(1+Eing_Max_Steig_Wärmeabnahmegrad/100),(1+Eing_Max_Steig_Wärmeabnahmegrad/100),(1+Eingabe!$N$20/100)^16))","v":100},{"$f":"Eingesetzte_Brennstoffwärme_Biomasse*C43/100*Eing_Rohstoffpreis_Biomasse*(1+$H$10)^18","v":459499.22343241668},{"$f":"Eingesetzte_Brennstoffwärme_fossil*Eing_Rohstoffpreis_fossil*C43/100*(1+$H$11)^18","v":87770.819111086617},21423.69371364409,{"$f":"Eing_Spez_Stromverbrauch*Eing_verkaufteWM*Eing_Strompreis*(C43/100)*(1+$H$13)^18","v":24246.688779437678},12854.21622818646,8012.455103832619,0,114473.3234877886,728280.41985639278,{"$f":"Eing_verkaufteWM*C43/100*Eing_Wärmeverkaufspreis*(1+$Q$10)^18","v":785678.07904465136},0,{"$f":"IF(Eingabe!$N$79=\"x\",O42+Eing_laufend_ErhoehungBetrag+Eing_laufend_ErhoehungProzent*O42/100,0)","v":29372.951089003116},{"$f":"$P$25*(1+$Q$12)^18","v":0},815051.03013365448,86770.610277261701,556975.73369875923,null,19,-108505.51989363811,{"$f":"IF(Eing_Jahr_der_Förderung=19,FörderBetrag,0)","v":0}]
[null,2028,{"$f":"$C$27*(IF(((1+Eingabe!$N$20/100)^17)>(1+Eing_Max_Steig_Wärmeabnahmegrad/100),(1+Eing_Max_Steig_Wärmeabnahmegrad/100),(1+Eingabe!$N$20/100)^17))","v":100},{"$f":"Eingesetzte_Brennstoffwärme_Biomasse*C44/100*Eing_Rohstoffpreis_Biomasse*(1+$H$10)^19","v":468689.207901065},{"$f":"Eingesetzte_Brennstoffwärme_fossil*Eing_Rohstoffpreis_fossil*C44/100*(1+$H$11)^19","v":92159.360066640962},21852.167587916971,{"$f":"Eing_Spez_Stromverbrauch*Eing_verkaufteWM*Eing_Strompreis*(C44/100)*(1+$H$13)^19","v":25459.023218409562},13111.30055275019,8225.534729387733,0,114473.3234877886,743969.91754395899,{"$f":"Eing_verkaufteWM*C44/100*Eing_Wärmeverkaufspreis*(1+$Q$10)^19","v":805320.03102076764},0,{"$f":"IF(Eingabe!$N$79=\"x\",O43+Eing_laufend_ErhoehungBetrag+Eing_laufend_ErhoehungProzent*O43/100,0)","v":31254.13962167321},{"$f":"$P$25*(1+$Q$12)^19","v":0},836574.17064244091,92604.253098481917,649579.98679724114,null,20,3.7834979593753815E-10,{"$f":"IF(Eing_Jahr_der_Förderung=20,FörderBetrag,0)","v":0}]
[null,2029,{"$f":"$C$27*(IF(((1+Eingabe!$N$20/100)^18)>(1+Eing_Max_Steig_Wärmeabnahmegrad/100),(1+Eing_Max_Steig_Wärmeabnahmegrad/100),(1+Eingabe!$N$20/100)^18))","v":100},{"$f":"Eingesetzte_Brennstoffwärme_Biomasse*C45/100*Eing_Rohstoffpreis_Biomasse*(1+$H$10)^20","v":478062.99205908633},{"$f":"Eingesetzte_Brennstoffwärme_fossil*Eing_Rohstoffpreis_fossil*C45/100*(1+$H$11)^20","v":96767.328069972995},22289.210939675315,{"$f":"Eing_Spez_Stromverbrauch*Eing_verkaufteWM*Eing_Strompreis*(C45/100)*(1+$H$13)^20","v":26731.97437933004},13373.526563805193,8444.3243930205044,0,0,645669.35640489042,{"$f":"Eing_verkaufteWM*C45/100*Eing_Wärmeverkaufspreis*(1+$Q$10)^20","v":825453.03179628681},0,{"$f":"IF(Eingabe!$N$79=\"x\",O44+Eing_laufend_ErhoehungBetrag+Eing_laufend_ErhoehungProzent*O44/100,0)","v":33191.763810323406},{"$f":"$P$25*(1+$Q$12)^20","v":0},858644.79560661025,212975.43920171983,862555.42599896097,null,21,0,{"$f":"IF(Eing_Jahr_der_Förderung=21,FörderBetrag,0)","v":0}]
[null,2030,{"$f":"$C$27*(IF(((1+Eingabe!$N$20/100)^19)>(1+Eing_Max_Steig_Wärmeabnahmegrad/100),(1+Eing_Max_Steig_Wärmeabnahmegrad/100),(1+Eingabe!$N$20/100)^19))","v":100},{"$f":"Eingesetzte_Brennstoffwärme_Biomasse*C46/100*Eing_Rohstoffpreis_Biomasse*(1+$H$10)^21","v":487624.25190026802},{"$f":"Eingesetzte_Brennstoffwärme_fossil*Eing_Rohstoffpreis_fossil*C46/100*(1+$H$11)^21","v":101605.69447347165},22734.995158468817,{"$f":"Eing_Spez_Stromverbrauch*Eing_verkaufteWM*Eing_Strompreis*(C46/100)*(1+$H$13)^21","v":28068.573098296543},13640.997095081297,8668.9783371060366,0,0,662343.49006269232,{"$f":"Eing_verkaufteWM*C46/100*Eing_Wärmeverkaufspreis*(1+$Q$10)^21","v":846089.35759119387},0,{"$f":"IF(Eingabe!$N$79=\"x\",O45+Eing_laufend_ErhoehungBetrag+Eing_laufend_ErhoehungProzent*O45/100,0)","v":35187.516724633111},{"$f":"$P$25*(1+$Q$12)^21","v":0},881276.87431582692,218933.3842531346,1081488.8102520956,null,22,0,{"$f":"IF(Eing_Jahr_der_Förderung=22,FörderBetrag,0)","v":0}]
[null,2031,{"$f":"$C$27*(IF(((1+Eingabe!$N$20/100)^20)>(1+Eing_Max_Steig_Wärmeabnahmegrad/100),(1+Eing_Max_Steig_Wärmeabnahmegrad/100),(1+Eingabe!$N$20/100)^20))","v":100},{"$f":"Eingesetzte_Brennstoffwärme_Biomasse*C47/100*Eing_Rohstoffpreis_Biomasse*(1+$H$10)^22","v":497376.73693827342},{"$f":"Eingesetzte_Brennstoffwärme_fossil*Eing_Rohstoffpreis_fossil*C47/100*(1+$H$11)^22","v":106685.97919714522},23189.695061638195,{"$f":"Eing_Spez_Stromverbrauch*Eing_verkaufteWM*Eing_Strompreis*(C47/100)*(1+$H$13)^22","v":29472.001753211367},13913.817036982922,8899.6550048215086,0,0,679537.88499207259,{"$f":"Eing_verkaufteWM*C47/100*Eing_Wärmeverkaufspreis*(1+$Q$10)^22","v":867241.59153097367},0,{"$f":"IF(Eingabe!$N$79=\"x\",O46+Eing_laufend_ErhoehungBetrag+Eing_laufend_ErhoehungProzent*O46/100,0)","v":37243.142226372103},{"$f":"$P$25*(1+$Q$12)^22","v":0},904484.73375734582,224946.84876527323,1306435.6590173687,null,23,0,{"$f":"IF(Eing_Jahr_der_Förderung=23,FörderBetrag,0)","v":0}]
[null,2032,{"$f":"$C$27*(IF(((1+Eingabe!$N$20/100)^21)>(1+Eing_Max_Steig_Wärmeabnahmegrad/100),(1+Eing_Max_Steig_Wärmeabnahmegrad/100),(1+Eingabe!$N$20/100)^21))","v":100},{"$f":"Eingesetzte_Brennstoffwärme_Biomasse*C48/100*Eing_Rohstoffpreis_Biomasse*(1+$H$10)^23","v":507324.27167703881},{"$f":"Eingesetzte_Brennstoffwärme_fossil*Eing_Rohstoffpreis_fossil*C48/100*(1+$H$11)^23","v":112020.27815700251},23653.488962870957,{"$f":"Eing_Spez_Stromverbrauch*Eing_verkaufteWM*Eing_Strompreis*(C48/100)*(1+$H$13)^23","v":30945.601840871943},14192.09337772258,9136.5171555085035,0,0,697272.2511710152,{"$f":"Eing_verkaufteWM*C48/100*Eing_Wärmeverkaufspreis*(1+$Q$10)^23","v":888922.631319248},0,{"$f":"IF(Eingabe!$N$79=\"x\",O47+Eing_laufend_ErhoehungBetrag+Eing_laufend_ErhoehungProzent*O47/100,0)","v":39360.436493163266},{"$f":"$P$25*(1+$Q$12)^23","v":0},928283.06781241123,231010.81664139603,1537446.4756587646,null,24,0,{"$f":"IF(Eing_Jahr_der_Förderung=24,FörderBetrag,0)","v":0}]
[null,2033,{"$f":"$C$27*(IF(((1+Eingabe!$N$20/100)^22)>(1+Eing_Max_Steig_Wärmeabnahmegrad/100),(1+Eing_Max_Steig_Wärmeabnahmegrad/100),(1+Eingabe!$N$20/100)^22))","v":100},{"$f":"Eingesetzte_Brennstoffwärme_Biomasse*C49/100*Eing_Rohstoffpreis_Biomasse*(1+$H$10)^24","v":517470.75711057958},{"$f":"Eingesetzte_Brennstoffwärme_fossil*Eing_Rohstoffpreis_fossil*C49/100*(1+$H$11)^24","v":117621.29206485262},24126.558742128374,{"$f":"Eing_Spez_Stromverbrauch*Eing_verkaufteWM*Eing_Strompreis*(C49/100)*(1+$H$13)^24","v":32492.881932915534},14475.935245277033,9379.7319832296635,0,0,715567.1570789828,{"$f":"Eing_verkaufteWM*C49/100*Eing_Wärmeverkaufspreis*(1+$Q$10)^24","v":911145.69710222911},0,{"$f":"IF(Eingabe!$N$79=\"x\",O48+Eing_laufend_ErhoehungBetrag+Eing_laufend_ErhoehungProzent*O48/100,0)","v":41541.249587958162},{"$f":"$P$25*(1+$Q$12)^24","v":0},952686.94669018732,237119.78961120453,1774566.2652699691,null,25,0,{"$f":"IF(Eing_Jahr_der_Förderung=25,FörderBetrag,0)","v":0}]
[]
[]
[980,"qm heizwerke - Wirtschaftlichkeitsmodell - Diagramm"]
[]
[]
[]
[]
[]
[]
[]
[]
[]
[]
[]
[]
[]
[]
[]
[]
[]
[]
[]
[]
[]
[]
[]
[]
[]
[]
[]
[]
[]
[]
[]
[]
[]
[]
[]
[]
[981]

{"sheet":"Interpretation","index":4,"n_rows":8,"n_cols":6,"rows_kept":8,"cut":false,"hidden":false,"merged":[[7,1,7,22],[3,5,3,22]]}
[null,"qm heizwerke - Wirtschaftlichkeitsmodell - Interpretation"]
[]
[]
[null,"Projekttitel:",null,null,null,"Musterprojekt Mustermann"]
[]
[null,"Anmerkungen zum Ergebnis der Wirtschaftlichkeitsrechnung (Interpretation)"]
[]
[500]